Cogmind - Beta 13 X1 @@@ ROGUE MODE // 2023.07.16 @ 00:01:48 Player: LU-1G1 Result: Destroyed by X-87 Electro with Compact HERF Cannon Performance ------------- Evolutions (9) 4500 Regions Visited (34) 6800 Robots Destroyed (295) 1475 Value Destroyed (13504) 13504 Prototype IDs (76) 1520 Alien Tech Used (10) 2000 Bonus (17289) 17289 TOTAL SCORE: 47088 Bonus ------- High Alert Combat Kills 1029 Follower Combat Kills 456 Entered Garrisons 200 Met Data Miner 300 Met Imprinter 300 Destroyed Z-Imprinter 1000 Met Zhirov 300 Met Warlord at Base 500 MAIN.C Attacked Warlord 500 Warlord Defense Kills 4276 Met Warlord at Research 2000 Destroyed MAIN.C Guards 500 Met MAIN.C 5000 Met Warlord at Command 2000 Friendly Fire -1072 Cogmind --------- Core Integrity 0/1600 Matter 223/300 Energy 47/100 System Corruption 0% Temperature Cool (0) Movement Core (150) Ox2 Location -1/Command Parts ------- > --- POWER (3) -------- (None) > --- PROPULSION (9) --- (None) > --- UTILITY (11) ----- Large Storage Unit > --- WEAPON (2) ------- Long-range Proton Cannon > --- INVENTORY (17) --- Advanced Matter Compressor (115) Experimental EM Disruption Field Experimental Force Field Compact HERF Cannon Peak State ------------ > --- POWER ------------ Light Quantum Reactor Vortex Chain Reactor > --- PROPULSION ------- Combat Gravmag System Combat Gravmag System Combat Gravmag System Combat Gravmag System Cooled Antigrav System Cooled Antigrav System Combat Antigrav System Combat Linear Gravjet Combat Linear Gravjet > --- UTILITY ---------- Advanced Cooling System Experimental Cooling System Large Storage Unit Experimental Energy Well Quantum Capacitor Experimental Utility Shielding Heavy Regenerative Plating AEGIS Remote Shield Advanced Hacking Suite > --- WEAPON ----------- Sigix Broadsword > --- INVENTORY -------- Improved Antigrav System Advanced Heat Sink Advanced Matter Compressor Experimental EM Disruption Field Experimental Force Field Subatomic Replicator Long-range Proton Cannon Compact HERF Cannon Enhanced Nova Cannon Perforator Core Stripper [Rating: 214] Favorites ----------- Power Vortex Chain Reactor Engine Makeshift Power Source Power Core Light Nuclear Core Reactor Vortex Chain Reactor Propulsion Combat Gravmag System Treads Light Treads Leg Aluminum Leg Hover Unit Combat Gravmag System Flight Unit Cesium-ion Thruster Utility Large Storage Unit Device Long-range Sensor Array Storage Large Storage Unit Processor Improved Signal Interpreter Hackware Advanced Hacking Suite Protection Experimental Utility Shielding Weapon Improved Assault Rifle Energy Gun Improved EM Shotgun Energy Cannon Compact HERF Cannon Ballistic Gun Improved Assault Rifle Ballistic Cannon Hypervelocity Mass Driver Launcher Long-range Missile Launcher Special Weapon RU-N14's Throwing Claymores v3 Impact Weapon Powered Hammer Slashing Weapon Greatsword Piercing Weapon Makeshift Spear Build | -11 -10 -10 -10 -8 -8 -8 -7 -7 -7 -7 -7 -6 -6 -6 -6 -6 -5 -5 -5 -5 -5 -4 -4 -4 -4 -4 -3 -3 -3 -2 -2 -2 -1 -1 ------- Run | Jun Mat Min Sub Mat Sto Gar Fac Low Low Zio Dee Pro Fac Low Low Dat Pro Fac Upp Upp Zhi Pro Fac Upp Upp War Pro Res Tes Res Qua Sec Acc Com Slots Evolved 18 | . . . . 4 . . 2 . . . . . 2 . . . . 2 . . . . 2 . . . . 2 . 2 . . 2 . Power 2 | . . . . . . . . . . . . . . . . . . . . . . . 1 . . . . . . . . . 1 . Propulsion 7 | . . . . 2 . . . . . . . . . . . . . 1 . . . . . . . . . 2 . 1 . . 1 . Utility 9 | . . . . 2 . . 2 . . . . . 2 . . . . 1 . . . . 1 . . . . . . 1 . . . . Weapon . | . . . . . . . . . . . . . . . . . . . . . . . . . . . . . . . . . . . Parts Attached 529 | 7 10 2 14 34 29 36 8 7 1 10 32 . 6 3 . . 1 7 19 6 9 4 20 13 12 28 4 20 68 6 22 29 14 48 Power 30 | 1 . 1 2 1 1 3 . 3 . 2 4 . . . . . . 1 1 . 1 . 3 1 . . 1 1 . . . . 1 2 Engine 13 | 1 . 1 2 . . 1 . 2 . 1 . . . . . . . 1 . . . . 2 1 . . 1 . . . . . . . Core 9 | . . . . 1 1 2 . 1 . 1 2 . . . . . . . 1 . . . . . . . . . . . . . . . Reactor 8 | . . . . . . . . . . . 2 . . . . . . . . . 1 . 1 . . . . 1 . . . . 1 2 Propulsion 103 | 2 2 1 2 13 14 13 4 . . 2 8 . 1 2 . . 1 1 8 1 . . 1 1 1 2 . 2 10 1 5 . 1 4 Treads 36 | 2 2 1 2 12 13 4 . . . . . . . . . . . . . . . . . . . . . . . . . . . . Leg 1 | . . . . . . 1 . . . . . . . . . . . . . . . . . . . . . . . . . . . . Wheel . | . . . . . . . . . . . . . . . . . . . . . . . . . . . . . . . . . . . Hover 48 | . . . . . . . . . . . 6 . 1 2 . . 1 1 8 1 . . 1 1 1 2 . 2 10 1 5 . 1 4 Flight 18 | . . . . 1 1 8 4 . . 2 2 . . . . . . . . . . . . . . . . . . . . . . . Utility 223 | 2 2 . 2 10 6 8 3 3 1 2 10 . 5 1 . . . 5 3 3 6 1 10 5 7 16 1 8 39 3 11 25 8 17 Device 127 | 1 . . . 3 1 3 . 2 . 2 5 . 3 1 . . . 1 2 2 5 . 5 4 6 10 1 6 17 1 6 18 8 14 Storage 14 | 1 1 . . . . . 1 . . . 2 . 1 . . . . . . . 1 . . 1 . 1 . . 2 . . 1 . 2 Processor 10 | . . . . 1 1 1 1 . . . . . 1 . . . . 1 . 1 . . . . . . . 1 1 . . . . 1 Hackware 9 | . . . . . . . 1 . 1 . . . . . . . . 2 . . . . 1 . . . . . 2 . 1 1 . . Protection 63 | . 1 . 2 6 4 4 . 1 . . 3 . . . . . . 1 1 . . 1 4 . 1 5 . 1 17 2 4 5 . . Artifact . | . . . . . . . . . . . . . . . . . . . . . . . . . . . . . . . . . . . Weapon 173 | 2 6 . 8 10 8 12 1 1 . 4 10 . . . . . . . 7 2 2 3 6 6 4 10 2 9 19 2 6 4 4 25 Energy Gun 18 | 1 1 . 3 6 . 2 . . . . 1 . . . . . . . 1 . . . . . 1 1 . . . . . . . 1 Energy Cannon 43 | . . . . . . . . . . . . . . . . . . . 1 . . 1 2 1 1 1 1 2 14 1 3 2 3 10 Ballistic Gun 26 | 1 5 . 1 3 5 6 . . . . . . . . . . . . . . . . . . . . . . . 1 . . . 4 Ballistic Cannon 20 | . . . . . . . . . . . . . . . . . . . . . 2 1 1 3 . . . 4 5 . . . . 4 Launcher 10 | . . . 2 . . . . . . . 1 . . . . . . . 2 1 . 1 1 1 . 1 . . . . . . . . Special Weapon 12 | . . . . . . . . . . 2 5 . . . . . . . . . . . . . . 5 . . . . . . . . Impact Weapon 12 | . . . . . . . . . . . . . . . . . . . . . . . . 1 1 2 1 3 . . 1 1 . 2 Slashing Weapon 31 | . . . 2 1 3 4 1 . . 2 3 . . . . . . . 3 1 . . 2 . 1 . . . . . 2 1 1 4 Piercing Weapon 1 | . . . . . . . . 1 . . . . . . . . . . . . . . . . . . . . . . . . . . Special Melee Weapon . | . . . . . . . . . . . . . . . . . . . . . . . . . . . . . . . . . . . Unidentified Prototypes 49 | . 2 . . 2 1 . . . . 1 7 . 1 . . . . 2 . . 3 . . 1 . 5 . 2 6 1 6 3 . 6 Corrupted Parts 4 | . . . 3 1 . . . . . . . . . . . . . . . . . . . . . . . . . . . . . . System Corruption 10 | . . . 9 1 . . . . . . . . . . . . . . . . . . . . . . . . . . . . . . Parts Lost 94 | . . . 7 3 5 20 . . . . 5 . 3 1 . 1 . 3 3 2 . . 5 3 2 . 1 . . . . . . 30 Power 12 | . . . 2 . 1 2 . . . . . . . . . . . 2 . . . . 1 1 . . . . . . . . . 3 Propulsion 34 | . . . 2 . 2 8 . . . . 4 . 1 1 . . . . 2 1 . . 1 1 1 . . . . . . . . 10 Utility 29 | . . . 1 2 1 4 . . . . 1 . 2 . . 1 . 1 1 1 . . 2 1 1 . 1 . . . . . . 9 Weapon 19 | . . . 2 1 1 6 . . . . . . . . . . . . . . . . 1 . . . . . . . . . . 8 Highest Loss Streak 21 | . . . 2 1 3 9 . . . . 5 . 3 1 . 1 . 3 2 2 . . 3 2 2 . 1 . . . . . . 21 To Critical Strikes 1 | . . . . . . . . . . . . . . . . . . . . . . . . . 1 . . . . . . . . . Average Slot Usage (%) 89 | . 99 100 97 94 99 88 73 82 88 87 88 94 76 81 84 83 78 74 79 73 77 77 81 88 89 93 93 92 92 94 91 85 85 79 Engine 3 | . 14 14 11 . . 1 . 2 5 5 1 . . . . . . 1 1 . . . 2 3 5 5 5 . . . . . . . Core 2 | . . . . 8 9 6 5 2 . . 3 5 5 5 5 5 5 2 3 5 1 . . . . . . . . . . . . . Reactor 2 | . . . . . . . . . . . 2 5 5 5 5 5 5 2 . . 3 5 7 6 5 5 5 4 4 4 4 4 6 7 Treads 9 | . 27 28 27 31 35 29 . . . . . . . . . . . . . . . . . . . . . . . . . . . . Hover 17 | . . . . . . . . . . . 15 23 18 21 21 21 21 20 24 23 26 29 26 26 26 26 26 33 32 33 33 34 34 33 Flight 3 | . . . . . . 1 28 29 29 29 10 5 5 5 5 5 5 4 5 5 5 . . . . . . . . . . . . . Device 10 | . 7 . . 8 4 2 5 11 11 11 14 17 13 18 21 21 21 13 7 6 5 7 7 10 10 14 20 22 15 13 13 16 16 16 Storage 6 | . 14 14 14 9 9 8 4 5 5 5 4 5 5 5 5 5 5 4 5 5 5 5 5 5 5 4 5 4 4 4 4 4 4 5 Processor 4 | . . . . 7 4 8 9 11 11 11 11 11 6 5 5 5 5 7 5 5 9 5 5 5 5 5 5 4 4 4 4 4 4 . Hackware 4 | . . . . . . . 5 5 5 5 1 . . . . . . 4 10 6 5 5 9 10 10 10 10 9 14 13 13 7 4 3 Protection 9 | . 6 14 13 10 18 12 5 2 5 5 5 5 5 5 5 4 . . 5 5 5 8 10 10 10 13 10 5 7 12 12 6 8 7 Energy Gun 2 | . . . 21 8 . 2 . . . . . . . . . . . . . . . . . . 2 . . . . . . . . . Energy Cannon 1 | . . . . . . . . . . . . . . . . . . . . . . 2 3 3 2 . 3 2 5 8 2 5 7 3 Ballistic Gun 4 | . 27 28 . 8 16 11 . . . . . . . . . . . . . . . . . . . . . . . . . . . . Slashing Weapon 1 | . . . 5 . . 2 4 5 5 3 2 5 5 5 5 5 5 4 3 4 5 . . 1 . 1 . . . . 1 1 . 1 Piercing Weapon 1 | . . . . . . . . 2 5 5 5 5 5 5 5 5 5 4 5 5 5 . . . . . . . . . . . . . Naked Turns . | . . . . . . . . . . . . . . . . . . . . . . . . . . . . . . . . . . . Heaviest Build 150 | 13 32 32 34 45 49 49 22 25 25 29 41 41 42 43 43 43 41 37 63 51 66 66 65 71 54 75 70 93 108 105 105 110 136 150 Greatest Support 148 | 40 40 40 40 80 80 80 25 25 25 31 56 56 56 51 47 47 51 65 70 70 70 70 70 70 70 70 70 96 99 109 109 121 131 148 Greatest Overweight (x) 3 | . . . . . . 3 . . . . 1 . . . . . . . . . . . 1 1 . 1 . . 1 . 1 . 1 1 Average Overweight (x) . | . . . . . . . . . . . . . . . . . . . . . . . . . . . . . . . . . . . Largest Inventory Capacity 40 | 8 15 15 15 15 15 15 10 10 10 10 10 10 40 40 40 40 40 40 40 40 40 40 40 40 40 40 15 15 15 15 15 17 17 17 Average Capacity 19 | 7 13 15 15 15 15 14 9 10 10 10 9 10 39 40 40 40 40 40 40 40 40 40 40 40 40 19 15 15 15 15 15 15 17 17 Most Carried 38 | 7 15 15 15 15 15 14 10 10 10 10 10 10 17 17 26 28 31 32 35 32 38 33 37 33 30 34 15 15 15 15 15 15 17 17 Average Carried 15 | 4 12 14 12 14 14 11 7 9 9 9 9 10 13 16 19 26 29 28 30 29 33 31 33 30 27 17 14 14 14 14 14 14 16 14 Final Capacity 40 | 8 15 15 15 15 15 5 10 10 10 10 10 10 40 40 40 40 40 40 40 40 40 40 40 40 40 15 15 15 15 15 15 17 17 17 Final Carried 33 | 6 15 15 13 15 14 3 10 10 10 10 10 10 17 16 26 28 31 32 29 31 31 33 33 30 28 15 15 15 15 14 15 14 17 4 Class Distribution -------------------- 24% | Hacker-Mutant 24% | Mutant 18% | Scavenger-Mutant 16% | Hauler-Mutant 5% | Scavenger-Sprinter 5% | Infiltrator-Mutant Dominant Class ---------------- Mutant | -10/Materials Mutant | -10/Mines Mutant | -10/Subcaves Scavenger-Mutant | -8/Materials Scavenger-Mutant | -8/Storage Scavenger-Mutant | -8/Garrison Scavenger-Sprinter | -7/Factory Scavenger-Sprinter | -7/Lower Caves Scavenger-Sprinter | -7/Lower Caves Scavenger-Sprinter | -7/Zion Scavenger-Mutant | -7/Deep Caves Scavenger-Mutant | -6/Proximity Caves Hauler-Mutant | -6/Factory Hauler-Mutant | -6/Lower Caves Hauler-Mutant | -6/Lower Caves Hauler-Mutant | -6/Data Miner Hauler-Mutant | -5/Proximity Caves Hacker-Mutant | -5/Factory Hacker-Mutant | -5/Upper Caves Hauler-Mutant | -5/Upper Caves Hauler-Mutant | -5/Zhirov Hauler-Mutant | -4/Proximity Caves Hauler-Mutant | -4/Factory Hauler-Mutant | -4/Upper Caves Hauler-Mutant | -4/Upper Caves Hacker-Mutant | -4/Warlord Hacker-Mutant | -3/Proximity Caves Hacker-Mutant | -3/Research Hacker-Mutant | -3/Testing Hacker-Mutant | -2/Research Hacker-Mutant | -2/Quarantine Hacker-Mutant | -2/Section 7 Infiltrator-Mutant | -1/Access Mutant | -1/Command Resources | -11 -10 -10 -10 -8 -8 -8 -7 -7 -7 -7 -7 -6 -6 -6 -6 -6 -5 -5 -5 -5 -5 -4 -4 -4 -4 -4 -3 -3 -3 -2 -2 -2 -1 -1 ----------- Run | Jun Mat Min Sub Mat Sto Gar Fac Low Low Zio Dee Pro Fac Low Low Dat Pro Fac Upp Upp Zhi Pro Fac Upp Upp War Pro Res Tes Res Qua Sec Acc Com Matter Collected 10114 | 276 318 38 183 573 797 684 90 70 10 48 392 . 41 36 9 . 19 30 275 70 370 31 99 564 497 587 25 118 1748 69 210 340 90 1407 Remotely 886 | . . . . . . . . . . . . . . . . . . . . . . . . . 161 210 . . 485 . 30 . . . Salvage Created 14604 | 101 684 119 451 1242 1194 706 175 84 317 . 344 32 43 29 . 28 102 173 312 54 483 43 172 303 328 551 103 85 1740 404 399 894 292 2617 Parts 634 | 4 46 5 21 75 82 26 11 3 8 . 17 . 3 . . 2 6 7 24 . 6 6 10 14 8 22 3 5 78 7 4 36 13 82 Haulers Intercepted 16 | . 2 . . 2 3 . 2 . . . . . . . . . . . . . . . 1 . . . . . 1 4 . 1 . . Recyclers Shooed 6 | . 1 . . . 3 . . . . . . . . . . . . . . . . . . . . . . . 2 . . . . . Parts Field Recycled . | . . . . . . . . . . . . . . . . . . . . . . . . . . . . . . . . . . . Retrieved Matter . | . . . . . . . . . . . . . . . . . . . . . . . . . . . . . . . . . . . Parts Self-Destructed 52 | . . . 8 . . . . . 1 . . . . 14 . . 2 . 12 . . 4 . 5 5 . 1 . . . . . . . Prevented 15 | . . . 3 . . . . 2 . . . . . . . . . . 2 . . . . . 6 . 2 . . . . . . . Kills | -11 -10 -10 -10 -8 -8 -8 -7 -7 -7 -7 -7 -6 -6 -6 -6 -6 -5 -5 -5 -5 -5 -4 -4 -4 -4 -4 -3 -3 -3 -2 -2 -2 -1 -1 ------- Run | Jun Mat Min Sub Mat Sto Gar Fac Low Low Zio Dee Pro Fac Low Low Dat Pro Fac Upp Upp Zhi Pro Fac Upp Upp War Pro Res Tes Res Qua Sec Acc Com Combat Hostiles Destroyed 220 | . 12 . 9 20 19 14 . . . . 11 . . . . . 1 3 16 . . 4 5 5 3 35 1 1 16 . 1 6 1 37 Melee 7 | . . . . . . 1 . . . . . . . . . . 1 3 2 . . . . . . . . . . . . . . . Guns 71 | . 12 . 7 20 19 13 . . . . . . . . . . . . . . . . . . . . . . . . . . . . Cannons 59 | . . . . . . . . . . . 1 . . . . . . . . . . . 1 . 1 2 1 1 14 . . 3 . 35 AOE 70 | . . . 1 . . . . . . . 10 . . . . . . . 13 . . 4 4 5 . 33 . . . . . . . . Classes Destroyed 29 | 2 5 1 2 3 1 . 1 . 1 . 3 1 . . . . 1 . . . . . 1 . . 4 . . 1 . 1 . . 1 Worker 20 | . 2 1 . 3 2 . 1 . . . . . 1 . . . . . . . . . . . . . . 1 . . . . . 9 Builder 4 | . . 1 . 1 . . . . . . . . 1 . . . . . . . . . . . . . . . 1 . . . . . Tunneler 2 | 1 . . . . . . . . . . . . . . . . . . . . . . . . . . . 1 . . . . . . Hauler 16 | . 2 . . 2 3 . 2 . . . . . . . . . . . . . . . 1 . . . . . 1 4 . 1 . . Recycler 10 | 1 1 . . . 1 . . . . . . . . . . . . . . . . . . . . . . . 5 . . 2 . . Minesweeper 1 | . . . . . . . . . . . . 1 . . . . . . . . . . . . . . . . . . . . . . Mechanic 2 | . . . . 1 . . . . . . . . . . . . . . . . . . . . . . . . . . . . . 1 Operator 3 | . . . . . . . 1 . . . . . . . . . . . . . . . . . . . . . . . . 2 . . Drone 1 | . . . . . . . . . . . . . . . . . 1 . . . . . . . . . . . . . . . . . Watcher 15 | . 3 . . 1 1 . 1 . . . . . . . . . . . . . . . . . . . . . 2 . 2 . 4 1 Swarmer 52 | . 3 . . 3 4 . . . . . . . . . . . . . 15 . . 4 4 1 . 3 . . 5 . . . . 10 Cutter 3 | . . . . . . . . . . . . . . . . . . . . . . . . . . . . . . . . . . 3 Saboteur 4 | . . . . . . . . . . . . . . . . . . . . . . . . . . 4 . . . . . . . . Grunt 82 | . 9 . 4 8 6 13 . . . . . . . . . . . 3 . . . . . 3 . 15 . . 5 . . . . 16 Brawler 5 | . . . . 1 . . . . . . . . . . . . . . . . . . . 1 . 3 . . . . . . . . Duelist 1 | . . . . . . . . . . . . . . . . . . . . . . . . . . 1 . . . . . . . . Protector 2 | . . . . . . . . . . . . . . . . . . . . . . . . . . 2 . . . . . . . . Researcher 1 | . . . . . . . . . . . . . . . . . . . . . . . . . . . . . 1 . . . . . Sentry 24 | . . . . 8 8 1 . . . . . . . . . . . . 1 . . . . . . . 1 . . . . 2 1 2 Hunter 8 | . . . . . 1 . . . . . . . . . . . . . . . . . . . 3 3 . . . . . . . 1 Programmer 17 | . . . . . . . . . . . . . . . . . . . . . . . 1 . . 3 . 1 5 . . 3 . 4 S7 Guard 1 | . . . . . . . . . . . . . . . . . . . . . . . . . . . . . . . . 1 . . Combat Programmer 1 | . . . . . . . . . . . . . . . . . . . . . . . . . . . . . . . . . . 1 Executioner 1 | . . . . . . . . . . . . . . . . . . . . . . . . . . 1 . . . . . . . . Fortress 1 | . . . . . . . . . . . . . . . . . . . . . . . . . . . . . . . 1 . . . Protovariant G 1 | . . . . . . . . . . . . . . . . . . . . . . . . . . . . . 1 . . . . . Artisan 1 | . . . 1 . . . . . . . . . . . . . . . . . . . . . . . . . . . . . . . Subdweller 5 | . . . 5 . . . . . . . . . . . . . . . . . . . . . . . . . . . . . . . Z-Light 7 | . . . . . . . . . . . 7 . . . . . . . . . . . . . . . . . . . . . . . Decomposer 1 | . . . . . . . . . . . . . . 1 . . . . . . . . . . . . . . . . . . . . Packrat 2 | . . . . . . . . . . . . . . . . . . . . 1 . . . . 1 . . . . . . . . . Samaritan 8 | . . . . . . . . . 2 . . . . . . . 2 . 1 . . . . 3 . . . . . . . . . . Assembled 3 | . . . . . . . . . . . 3 . . . . . . . . . . . . . . . . . . . . . . . Butcher 1 | . . . . . . . . . . . . . . . . . . . . . . . . . . . . . . . . . . 1 Fireman 1 | . . . . . . . . . . . 1 . . . . . . . . . . . . . . . . . . . . . . . Commander 1 | . . . . . . . . 1 . . . . . . . . . . . . . . . . . . . . . . . . . . Best Kill Streak 11 | 2 5 1 3 6 5 3 3 . . . 6 1 2 . . 1 1 3 7 . . 4 4 5 2 10 1 1 9 1 1 3 1 11 Combat Bots Only 10 | . 2 . 3 4 4 3 . . . . 6 . . . . . 1 3 7 . . 4 4 5 2 10 1 1 7 . 1 3 1 9 Max Kills in Single Turn 6 | 1 1 1 1 2 1 2 1 1 1 . 4 1 1 1 . 1 1 1 4 1 . 3 4 3 1 6 1 1 3 1 1 1 1 4 Gunslinging 1 | . . . . 1 . 1 . . . . . . . . . . . . . . . . . . . . . . . . . . . . Exploded 5 | . . . 1 . . . . . . . 4 . . . . . . . 4 . . 3 4 3 . 5 . . . . . . . . Melee 1 | . . . . . . 1 . . . . . . . . . . 1 1 1 . . . . . . . . . . . . . . . Uniques/NPCs Destroyed 2 | . . . . . . . . . . . 1 . . . . 1 . . . . . . . . . . . . . . . . . . Z-Imprinter (-7/Deep Caves) Data Miner (-6/Data Miner) Combat | -11 -10 -10 -10 -8 -8 -8 -7 -7 -7 -7 -7 -6 -6 -6 -6 -6 -5 -5 -5 -5 -5 -4 -4 -4 -4 -4 -3 -3 -3 -2 -2 -2 -1 -1 -------- Run | Jun Mat Min Sub Mat Sto Gar Fac Low Low Zio Dee Pro Fac Low Low Dat Pro Fac Upp Upp Zhi Pro Fac Upp Upp War Pro Res Tes Res Qua Sec Acc Com Damage Taken 18699 | . 303 40 776 1063 1249 2071 32 . 15 . 436 . 486 89 . 141 . 429 322 223 . 233 1385 214 350 350 19 157 345 13 98 185 80 7595 Core 2621 | . 42 . 133 135 90 277 . . . . 61 . 118 25 . . . 82 . 32 . 13 114 . 9 48 . . 10 . . 39 . 1393 Absorbed by Shields 4504 | . . . . . . . . . . . 21 . 62 81 . 49 . 197 120 81 . 85 485 68 248 128 8 161 361 13 102 112 . 2122 Redirected to Shielding 465 | . . . . . . 9 3 . 1 . 31 . . . . . . . . . . . 63 18 36 77 12 14 46 . . 2 . 153 Ignored by Resistances 271 | . . . . . . . . . . . . . . . . . . . . . . . . . . . . . . . . 182 . 89 Regen/Repaired (Parts) 2582 | . 84 . . 83 . . 33 . . . . . . . . . . . . . . . . . . 470 . . 209 24 206 270 61 1142 Core Remaining (%) 75 | 100 . . 30 . . 8 . . . . . 91 . . . . 83 . . . . 87 . . . . 85 . 99 . . 97 . . Volleys Fired 846 | 2 37 3 27 69 71 65 . . . 9 14 . . . . . . . 12 . . 20 16 13 30 22 3 5 78 23 19 44 61 203 Largest 2 | 2 2 2 2 2 2 2 . . . 1 2 . . . . . . . 1 . . 1 2 1 1 1 1 2 2 1 1 1 1 2 Hottest 184 | 70 46 46 90 90 46 130 . . . . 60 . . . . . . . 75 . . 105 171 75 88 75 75 127 184 94 94 120 120 120 Shots Fired 1095 | 4 74 6 46 134 140 103 . . . 9 18 . . . . . . . 12 . . 20 18 14 31 22 3 9 81 23 19 44 61 204 Gun 528 | 4 74 6 41 134 140 103 . . . . 8 . . . . . . . . . . . . . 13 . . . . . . . . 5 Cannon 512 | . . . . . . . . . . . . . . . . . . . 6 . . 17 17 11 18 4 3 9 81 23 19 44 61 199 Launcher 18 | . . . 5 . . . . . . . . . . . . . . . 6 . . 3 1 3 . . . . . . . . . . Special 37 | . . . . . . . . . . 9 10 . . . . . . . . . . . . . . 18 . . . . . . . . Kinetic 471 | 2 74 6 . 83 140 93 . . . . . . . . . . . . . . . 4 2 9 . . . 8 19 . . . . 31 Thermal 325 | 2 . . . . . 10 . . . . 8 . . . . . . . . . . 13 15 . 13 . . . 39 10 16 30 45 124 Explosive 46 | . . . 5 . . . . . . . 10 . . . . . . . 6 . . 3 1 3 . 18 . . . . . . . . Electromagnetic 244 | . . . 41 51 . . . . . . . . . . . . . . 6 . . . . 2 18 4 3 1 23 13 3 14 16 49 Robot Hit Streak 37 | 2 18 19 11 23 25 12 . . . . 10 . . . . . . . 7 . . 2 4 6 3 5 6 8 8 7 4 3 3 37 Robot Miss Streak 21 | 1 2 1 1 3 2 2 . . . . . . . . . . . . 1 . . 2 1 3 2 3 . 2 21 2 1 2 2 14 Penetration Max 3 | . . . . . . . . . . . . . . . . . . . . . . . . . . . . . 2 . . . . 3 Secondary Targets 5 | . . . 2 1 1 1 . . . . . . . . . . . . . . . . . . . . . . . . . . . . Max Gunslinging Chain 1 | . . . 1 1 1 1 . . . . . . . . . . . . . . . . . . . . . . . . . . . . Capacitor 259 | . . . . . . . . . . . . . . . . . . . . . . . . . . . . . . . . 35 61 163 Shots Hit Robots 788 | 2 52 3 39 115 113 78 8 5 6 . 8 2 2 1 . 1 5 13 12 2 9 2 7 10 13 14 3 7 31 12 10 19 10 174 Core Hits 572 | 3 28 3 21 57 47 35 3 1 4 . 18 1 1 . . 1 3 6 18 1 4 5 7 14 5 90 3 1 48 2 2 6 3 131 Critical Kills 42 | . 1 . . . . . . . . . . . . . . . . . . . . . . . . . . 1 16 . . . . 24 Critical Parts Destroyed 56 | . . . . 1 . . . . . . . . . . . . . . . . . . 1 1 . . . 1 19 . . . . 33 Critical Strikes 131 | . 1 . . 1 . . . . 1 . . . . . . . . 1 . . 1 . 1 1 . 5 . 2 35 . . . . 82 Meltdown 2 | . . . . . . . . . . . . . . . . . . . . . . . . . . . . . . . . . . 2 Destroy 121 | . 1 . . 1 . . . . . . . . . . . . . . . . . . 1 1 . . . 2 35 . . . . 80 Sever 6 | . . . . . . . . . . . . . . . . . . . . . 1 . . . . 5 . . . . . . . . Impale 2 | . . . . . . . . . 1 . . . . . . . . 1 . . . . . . . . . . . . . . . . Melee Attacks 402 | . . . 16 1 4 6 19 8 29 5 3 25 23 2 5 6 15 17 9 4 12 . 4 12 19 28 7 13 2 . 12 11 3 82 Kinetic 12 | . . . . . . . . . . . . . . . . . . . . . . . . . . . . . . . 4 3 . 5 Impact 67 | . . . . . . . . . . . . . . . . . . . . . . . . 3 19 23 7 13 2 . . . . . Slashing 213 | . . . 16 1 4 6 19 3 2 3 2 22 . . . . 1 1 8 3 8 . 4 9 . 5 . . . . 8 8 3 77 Piercing 110 | . . . . . . . . 5 27 2 1 3 23 2 5 6 14 16 1 1 4 . . . . . . . . . . . . . Sneak Attacks 37 | . . . 1 . . . 4 5 2 . 1 1 2 1 . 1 5 . 1 2 . . 1 5 1 . . 2 . . . 2 . . Combat Hostiles 1 | . . . . . . . . . . . . . . . . . 1 . . . . . . . . . . . . . . . . . Follow-up Attacks 5 | . . . . . . . . 1 . . . . . . . . 1 . . 1 2 . . . . . . . . . . . . . Damage Inflicted 39056 | 28 834 87 818 2016 1663 1277 668 340 419 . 1892 182 146 53 . 62 352 323 1668 164 885 372 559 1142 616 10154 82 355 1123 584 646 1044 685 7817 Guns 6372 | 27 832 54 580 1916 1654 1195 . . . . . . . . . . . . . . . . . . . . . . . . . . . 114 Cannons 9777 | . . . . . . . . . . . . . . . . . . . 135 . . . 110 43 363 86 82 108 1042 509 142 665 593 5899 Explosions 14222 | . . . 173 57 . . . . . . 1489 . . . . . . . 1190 . . 372 324 779 149 9427 . . 81 23 66 . 92 . Melee 7582 | . . . 59 . . 82 668 340 419 . 101 182 146 53 . 62 352 323 343 164 885 . 125 320 104 . . 247 . . 438 379 . 1790 Ramming 160 | 1 2 33 6 43 9 . . . . . . . . . . . . . . . . . . . . . . . . 52 . . . 14 Kinetic 6285 | 15 832 54 . 1094 1654 1088 . . . . . . . . . . . . . . . . 31 43 . . . 71 314 . 122 . . 967 Thermal 5181 | 12 . . 69 57 . 107 . . . . . . . . . . . . . . . . 79 . 149 . . . 112 60 66 313 136 4021 Explosive 13685 | . . . 104 . . . . . . . 1489 . . . . . . . 1190 . . 372 324 779 . 9427 . . . . . . . . Electromagnetic 5546 | . . . 580 822 . . . . . . . . . . . . . . 135 . . . . . 363 86 82 37 697 472 142 352 549 1229 Impact 351 | . . . . . . . . . . . . . . . . . . . . . . . . . 104 . . 247 . . . . . . Slashing 6181 | . . . 59 . . 82 668 118 . . 403 182 . . . . 104 . 343 96 759 . 125 320 . 641 . . . . 316 379 . 1586 Piercing 1667 | . . . . . . . . 222 419 . . . 146 53 . 62 248 323 . 68 126 . . . . . . . . . . . . . Highest Corruption 9 | . . . 9 3 6 6 . . . . . . 7 7 7 7 7 . . . . . 5 5 5 5 1 3 5 1 1 1 . . Average Corruption 3 | . . . 4 1 4 6 . . . . . . 6 7 7 7 7 . . . . . 2 5 5 1 1 2 3 1 1 1 . . Corruption Purged 2 | . . . . . . . . . . . . . . . . . . . . . . . . . . . . . . 1 . 1 . . Corruption Blocked 32 | . . . . . . . . . . . . . . . . . . . . . . . . . . . . . . . . . . 32 Effects 196 | . . . 30 10 20 31 . . . . . . 8 9 3 3 5 . . . . . . 15 13 9 . 5 29 2 3 1 . . Message Errors 40 | . . . 9 2 2 3 . . . . . . 1 4 2 1 . . . . . . . 4 3 1 . . 6 1 . 1 . . Matter Fused 55 | . . . 4 5 4 14 . . . . . . 1 1 . 1 1 . . . . . . 2 7 2 . 4 8 1 . . . . Heat Flow Errors 29 | . . . 5 1 6 4 . . . . . . 1 1 1 1 . . . . . . . 2 1 1 . . 4 . 1 . . . Energy Discharges 23 | . . . 4 . 3 1 . . . . . . 1 1 . . 2 . . . . . . 2 . 3 . . 5 . 1 . . . Parts Rejected 3 | . . . 1 . . 1 . . . . . . . 1 . . . . . . . . . . . . . . . . . . . . Parts Fused 5 | . . . 3 . 1 . . . . . . . . . . . . . . . . . . . . . . 1 . . . . . . Data Loss (minor) 21 | . . . 3 1 2 2 . . . . . . 4 . . . 1 . . . . . . 4 1 2 . . 1 . . . . . Data Loss (major) 6 | . . . . 1 . . . . . . . . . 1 . . 1 . . . . . . . . . . . 2 . 1 . . . Misfires 8 | . . . 1 . 1 2 . . . . . . . . . . . . . . . . . 1 1 . . . 2 . . . . . Weapon Failures 6 | . . . . . 1 4 . . . . . . . . . . . . . . . . . . . . . . 1 . . . . . Overload Shots . | . . . . . . . . . . . . . . . . . . . . . . . . . . . . . . . . . . . Overflow Damage 2379 | . . . 32 . . . 155 . 129 . 152 72 33 33 . . 63 4 148 80 214 . 77 121 9 238 . 204 22 12 146 290 45 100 Projectiles 300 | . . . . . . . . . . . 17 . . . . . . . . . . . 7 . . 46 . 17 22 . 46 . 45 100 Explosions 360 | . . . 3 . . . . . . . 59 . . . . . . . 58 . . . 48 . . 192 . . . . . . . . Melee 1719 | . . . 29 . . . 155 . 129 . 76 72 33 33 . . 63 4 90 80 214 . 22 121 9 . . 187 . 12 100 290 . . Knockbacks 44 | . . . . 1 . . . . . . . . . . . . . . . . . . . . 1 . . 3 20 1 . . . 18 Impact 5 | . . . . 1 . . . . . . . . . . . . . . . . . . . . 1 . . 2 . 1 . . . . Kinetic 36 | . . . . . . . . . . . . . . . . . . . . . . . . . . . . 1 17 . . . . 18 Secondary 3 | . . . . . . . . . . . . . . . . . . . . . . . . . . . . . 3 . . . . . Self-Inflicted Damage 153 | . . . 38 . . . . . . . . . . . . . . . . . . . . . . . . . 83 26 . . . 6 Shots 3 | . . . 2 . . . . . . . . . . . . . . . . . . . . . . . . . 1 . . . . . Rammed 22 | 1 2 4 3 6 3 . . . . . . . . . . . . . . . . . . . . . . . . 1 . . . 2 Targets Rammed 27 | 1 2 6 3 7 5 . . . . . . . . . . . . . . . . . . . . . . . . 1 . . . 2 Kicked . | . . . . . . . . . . . . . . . . . . . . . . . . . . . . . . . . . . . Crushed 5 | . . 2 . 1 2 . . . . . . . . . . . . . . . . . . . . . . . . . . . . . Highest Temperature 402 | 9 8 . 178 269 270 320 . . . 3 145 . 152 120 198 218 . 2 42 24 4 200 212 248 262 103 . 45 217 62 90 325 402 264 Average Temperature 71 | 6 3 . 62 65 97 81 . . . 2 55 . 74 60 100 113 . 1 17 5 2 68 89 77 84 35 . 21 39 21 19 86 90 78 Received Heat Transfer 3552 | . 135 . 129 504 441 1017 6 . 6 . 107 . . 18 . . . 173 . 80 . 6 214 51 . 51 6 4 29 . 4 13 18 540 Effects 8 | . . . . 3 3 1 . . . . . . . . . . . . . . . . . . . . . . . . . . 1 . Shutdowns 1 | . . . . . . 1 . . . . . . . . . . . . . . . . . . . . . . . . . . . . Energy Bleed 2 | . . . . . 2 . . . . . . . . . . . . . . . . . . . . . . . . . . . . . Interference 4 | . . . . 3 1 . . . . . . . . . . . . . . . . . . . . . . . . . . . . . Damage (minor) 1 | . . . . . . . . . . . . . . . . . . . . . . . . . . . . . . . . . 1 . Siege Activations . | . . . . . . . . . . . . . . . . . . . . . . . . . . . . . . . . . . . Robots Corrupted 15 | . . . 1 . . . . . . . . . . . . . . . 1 . . . . . 2 . . . 3 2 . 3 2 1 Combat Hostiles 10 | . . . 1 . . . . . . . . . . . . . . . 1 . . . . . 2 . . . 2 . . 2 1 1 Parts Fried 51 | . . . 5 3 . . . . . . . . . . . . . . . . . . . . 2 . . 1 13 6 2 4 7 8 Impact Corruptions 8 | . . . . . . . . . . . . . . . . . . . . . . . . . 1 . . 6 . 1 . . . . Robots Melted 2 | . . . . . . . . . . . . . . . . . . . . . . . . . . . . . . . . . . 2 Combat Hostiles 1 | . . . . . . . . . . . . . . . . . . . . . . . . . . . . . . . . . . 1 Parts Melted 10 | 1 . . 2 . . 1 . . . . . . . . . . . . . . . . 1 . . . . . . . . . . 5 Heat Transferred 2769 | 37 . . 100 50 . 259 . . . . . . . . . . . . . . . . 74 . 100 . . . 100 50 50 222 87 1640 Parts Sabotaged 7 | . . . . . . 7 . . . . . . . . . . . . . . . . . . . . . . . . . . . . Parts Stolen . | . . . . . . . . . . . . . . . . . . . . . . . . . . . . . . . . . . . Parts Stripped . | . . . . . . . . . . . . . . . . . . . . . . . . . . . . . . . . . . . Power Chain Reactions 7 | . . . 1 1 . . . . . . . . . . . . . . . . . . . . 1 . . . 1 1 1 . 1 . Missiles Intercepted . | . . . . . . . . . . . . . . . . . . . . . . . . . . . . . . . . . . . Alert | -11 -10 -10 -10 -8 -8 -8 -7 -7 -7 -7 -7 -6 -6 -6 -6 -6 -5 -5 -5 -5 -5 -4 -4 -4 -4 -4 -3 -3 -3 -2 -2 -2 -1 -1 ------- Run | Jun Mat Min Sub Mat Sto Gar Fac Low Low Zio Dee Pro Fac Low Low Dat Pro Fac Upp Upp Zhi Pro Fac Upp Upp War Pro Res Tes Res Qua Sec Acc Com Peak Influence 854 | 10 272 90 . 506 531 682 585 . . . . . 41 . . . . 538 . . . . 536 . . . . 141 427 367 257 358 328 854 Initial 452 | . 6 70 . . 167 289 347 . . . . . 2 . . . . 452 . . . . 225 . . . . 13 2 240 114 13 3 137 Average 254 | 2 117 73 . 202 324 538 451 . . . . . 25 . . . . 493 . . . . 376 . . . . 48 112 279 55 130 177 623 Maximum Alert Level 3 | . 1 . . 2 2 2 2 . . . . . . . . . . 2 . . . . 2 . . . . . 2 1 1 1 1 3 Low Security (%) 50 | 100 86 100 . 55 10 . . . . . . . 100 . . . . . . . . . . . . . . 100 84 10 97 74 56 4 Level 1 23 | . 13 . . 35 66 11 42 . . . . . . . . . . . . . . . 42 . . . . . 8 89 2 25 43 14 Level 2 19 | . . . . 9 23 88 57 . . . . . . . . . . 100 . . . . 57 . . . . . 6 . . . . 35 Level 3 5 | . . . . . . . . . . . . . . . . . . . . . . . . . . . . . . . . . . 45 Level 4 . | . . . . . . . . . . . . . . . . . . . . . . . . . . . . . . . . . . . Level 5 . | . . . . . . . . . . . . . . . . . . . . . . . . . . . . . . . . . . . High Security . | . . . . . . . . . . . . . . . . . . . . . . . . . . . . . . . . . . . Max Security . | . . . . . . . . . . . . . . . . . . . . . . . . . . . . . . . . . . . Squads Dispatched 41 | . 5 . . 3 2 . 1 . . . . . . . . . . . . . . . 5 . . . . 2 6 1 2 3 4 7 Investigation 10 | . 1 . . 2 1 . . . . . . . . . . . . . . . . . 1 . . . . . 2 1 1 . . 1 Extermination 8 | . . . . . . . . . . . . . . . . . . . . . . . 1 . . . . 1 1 . 1 1 1 2 Reinforcement 19 | . 4 . . 1 1 . 1 . . . . . . . . . . . . . . . 3 . . . . 1 2 . . 2 3 1 Assault 4 | . . . . . . . . . . . . . . . . . . . . . . . . . . . . . 1 . . . . 3 Garrison . | . . . . . . . . . . . . . . . . . . . . . . . . . . . . . . . . . . . Intercept . | . . . . . . . . . . . . . . . . . . . . . . . . . . . . . . . . . . . Searches Triggered . | . . . . . . . . . . . . . . . . . . . . . . . . . . . . . . . . . . . Construction Impeded 2 | . . . . . . . . . . . . . . . . . . . . . . . 1 . . . . . 1 . . . . . Haulers Reinforced 2 | . . . . . . . . . . . . . . . . . . . . . . . 1 . . . . . 1 . . . . . Active Scanning Responses . | . . . . . . . . . . . . . . . . . . . . . . . . . . . . . . . . . . . Cargo Convoy Interrupts . | . . . . . . . . . . . . . . . . . . . . . . . . . . . . . . . . . . . Stealth | -11 -10 -10 -10 -8 -8 -8 -7 -7 -7 -7 -7 -6 -6 -6 -6 -6 -5 -5 -5 -5 -5 -4 -4 -4 -4 -4 -3 -3 -3 -2 -2 -2 -1 -1 --------- Run | Jun Mat Min Sub Mat Sto Gar Fac Low Low Zio Dee Pro Fac Low Low Dat Pro Fac Upp Upp Zhi Pro Fac Upp Upp War Pro Res Tes Res Qua Sec Acc Com Distress Signals 20 | . 1 . . 2 2 . . . . . . . . . . . . . . . . 1 1 . . 2 . 1 1 7 . 2 . . Communications Jammed 22 | . . . . . . . . . . . . . . . . . . . . . . . . . . . . 1 3 . . 12 4 2 Distress Signals 22 | . . . . . . . . . . . . . . . . . . . . . . . . . . . . 1 3 . . 12 4 2 Times Spotted 460 | . 22 . 9 34 23 27 7 . 2 . 14 . . 9 3 4 3 9 12 6 . 10 22 7 4 96 1 6 22 8 8 21 9 62 Peak Tracking Total 17 | . 4 . 3 5 4 5 6 . 3 . 3 . . 10 4 4 2 6 5 5 . 6 10 7 2 17 1 3 5 13 2 4 2 10 Tactical Retreats 36 | . 3 . . 4 1 1 2 . . . . . . 2 2 . . . . 2 . 1 2 1 . 6 . 1 1 . . 2 1 4 Traps | -11 -10 -10 -10 -8 -8 -8 -7 -7 -7 -7 -7 -6 -6 -6 -6 -6 -5 -5 -5 -5 -5 -4 -4 -4 -4 -4 -3 -3 -3 -2 -2 -2 -1 -1 ------- Run | Jun Mat Min Sub Mat Sto Gar Fac Low Low Zio Dee Pro Fac Low Low Dat Pro Fac Upp Upp Zhi Pro Fac Upp Upp War Pro Res Tes Res Qua Sec Acc Com Traps Triggered 11 | . . 1 1 . 3 . . . . . . . . . . . . . . . . . . . . . . 1 . . 1 1 . 3 Indirectly . | . . . . . . . . . . . . . . . . . . . . . . . . . . . . . . . . . . . Trap Hack Attempts . | . . . . . . . . . . . . . . . . . . . . . . . . . . . . . . . . . . . Triggered . | . . . . . . . . . . . . . . . . . . . . . . . . . . . . . . . . . . . Disarmed . | . . . . . . . . . . . . . . . . . . . . . . . . . . . . . . . . . . . Reprogrammed . | . . . . . . . . . . . . . . . . . . . . . . . . . . . . . . . . . . . Reused . | . . . . . . . . . . . . . . . . . . . . . . . . . . . . . . . . . . . Traps Extracted . | . . . . . . . . . . . . . . . . . . . . . . . . . . . . . . . . . . . Installed 10 | . . . . . . . . . . . . 10 . . . . . . . . . . . . . . . . . . . . . . Triggered 13 | . . . 1 . . . . 1 . . . . . . . . . . . 1 . . . . . 10 . . . . . . . . Machines | -11 -10 -10 -10 -8 -8 -8 -7 -7 -7 -7 -7 -6 -6 -6 -6 -6 -5 -5 -5 -5 -5 -4 -4 -4 -4 -4 -3 -3 -3 -2 -2 -2 -1 -1 ---------- Run | Jun Mat Min Sub Mat Sto Gar Fac Low Low Zio Dee Pro Fac Low Low Dat Pro Fac Upp Upp Zhi Pro Fac Upp Upp War Pro Res Tes Res Qua Sec Acc Com Machines Disabled 40 | . 1 . 1 1 2 2 . 1 . . 2 . . . . . . . . . 1 . 3 1 . 1 . . 8 . 6 4 3 3 Max in Single Turn 2 | . 1 . 1 1 1 1 . 1 . . . . . . . . . . . . 1 . 2 1 . 1 . . 2 . 1 1 1 1 Garrison Access 3 | . . . . 1 . . . . . . . . . . . . . . . . . . . . . . . . . . 1 1 . . Garrison Relay 2 | . . . . . . 2 . . . . . . . . . . . . . . . . . . . . . . . . . . . . Machines Repaired . | . . . . . . . . . . . . . . . . . . . . . . . . . . . . . . . . . . . Machines Sabotaged . | . . . . . . . . . . . . . . . . . . . . . . . . . . . . . . . . . . . Overloaded Fab Kills . | . . . . . . . . . . . . . . . . . . . . . . . . . . . . . . . . . . . Hacking | -11 -10 -10 -10 -8 -8 -8 -7 -7 -7 -7 -7 -6 -6 -6 -6 -6 -5 -5 -5 -5 -5 -4 -4 -4 -4 -4 -3 -3 -3 -2 -2 -2 -1 -1 --------- Run | Jun Mat Min Sub Mat Sto Gar Fac Low Low Zio Dee Pro Fac Low Low Dat Pro Fac Upp Upp Zhi Pro Fac Upp Upp War Pro Res Tes Res Qua Sec Acc Com Machines Accessed 112 | . 3 1 1 9 4 1 8 1 1 . . . 9 . . 3 . 1 1 1 4 . 6 2 1 . . 2 18 1 13 9 7 5 Terminals 71 | . 2 . . 5 2 1 6 . . . . . 5 . . . . 1 . . . . 6 . . . . 2 11 1 9 8 7 5 Fabricators 2 | . . . . . . . . . . . . . . . . . . . . . . . . . . . . . 2 . . . . . Repair Stations 10 | . 1 . . 1 1 . 1 . . . . . 2 . . . . . . . . . . . . . . . 2 . 2 . . . Recycling Units 1 | . . . . . . . 1 . . . . . . . . . . . . . . . . . . . . . . . . . . . Scanalyzers 6 | . . . . 2 . . . . . . . . 1 . . . . . . . . . . . . . . . 2 . 1 . . . Garrison Access 6 | . . . . 1 1 . . . . . . . 1 . . . . . . . . . . . . . . . 1 . 1 1 . . Total Hacks 356 | . 11 1 9 25 9 2 19 8 1 . . . 19 . . 22 . 6 1 1 17 . 28 8 1 . . 5 69 4 51 23 10 6 Successful 202 | . 7 1 9 9 3 1 11 8 1 . . . 4 . . 22 . 2 1 1 17 . 7 8 1 . . 2 36 . 31 13 6 1 Failed 153 | . 3 . . 16 6 1 8 . . . . . 15 . . . . 4 . . . . 21 . . . . 3 33 4 20 10 4 5 Catastrophic 34 | . 1 . . 2 . 1 3 . . . . . 5 . . . . . . . . . 5 . . . . . 7 . 4 2 1 3 Database Lockouts 1 | . 1 . . . . . . . . . . . . . . . . . . . . . . . . . . . . . . . . . Manual 93 | . 7 . . 5 3 . 3 1 . . . . . . . . . 1 . . . . 15 . . 1 . . 19 4 19 11 1 3 Terminals 221 | . 8 . . 14 5 2 13 . . . . . 10 . . . . 6 . . . . 28 . . . . 5 52 4 36 22 10 6 Fabricators 5 | . . . . . . . . . . . . . . . . . . . . . . . . . . . . . 5 . . . . . Repair Stations 37 | . 3 . . 2 3 . 5 . . . . . 4 . . . . . . . . . . . . . . . 9 . 11 . . . Recycling Units 1 | . . . . . . . 1 . . . . . . . . . . . . . . . . . . . . . . . . . . . Scanalyzers 14 | . . . . 5 . . . . . . . . 4 . . . . . . . . . . . . . . . 2 . 3 . . . Garrison Access 9 | . . . . 4 1 . . . . . . . 1 . . . . . . . . . . . . . . . 1 . 1 1 . . Terminal Hacks 151 | . 5 1 9 2 1 1 6 8 1 . . . 2 . . 22 . 2 1 1 17 . 7 8 1 . . 2 20 . 16 11 6 1 Record 36 | . . . 8 . . . . 8 . . . . . . . 6 . . . . 5 . . 7 . . . . 1 . . . 1 . Part Schematic 17 | . . . . . . . . . . . . . . . . 9 . . . . 4 . 2 . . . . . 2 . . . . . Robot Schematic 4 | . . . . . . . . . . . . . . . . 4 . . . . . . . . . . . . . . . . . . Robot Analysis 10 | . 5 . . . . . . . . . . . . . . . . . . . 4 . . . . . . . 1 . . . . . Prototype ID Bank 8 | . . . . . . . . . . . . . . . . 3 . . . . 4 . . . . . . . . . 1 . . . Open Door 16 | . . 1 . . 1 . . . 1 . . . . . . . . . 1 1 . . . 1 1 . . . 1 . . 4 4 . Open DSF 4 | . . . . . . . 1 . . . . . 1 . . . . . . . . . 1 . . . . 1 . . . . . . Level Access Points 2 | . . . . . . . . . . . . . . . . . . . . . . . . . . . . . 1 . 1 . . . Branch Access Points 4 | . . . . 1 . . 1 . . . . . . . . . . 1 . . . . 1 . . . . . . . . . . . Machine Index 1 | . . . . . . . . . . . . . . . . . . . . . . . . . . . . . 1 . . . . . Terminal Index 2 | . . . . . . . . . . . . . . . . . . . . . . . . . . . . . . . 1 . 1 . Scanalyzer Index 2 | . . . . . . . . . . . . . . . . . . . . . . . . . . . . . . . 1 1 . . Alert Level 4 | . . . . . . . . . . . . . . . . . . . . . . . . . . . . . 2 . 2 . . . Unreport Threat 9 | . . . . . . . . . . . . . . . . . . . . . . . . . . . . 1 1 . 4 3 . . Locate Traps 8 | . . . . . . . 2 . . . . . 1 . . . . 1 . . . . . . . . . . 2 . 2 . . . Security Status 1 | . . . . . . . . . . . . . . . . . . . . . . . . . . . . . . . 1 . . . Transport Status 1 | . . . . 1 . . . . . . . . . . . . . . . . . . . . . . . . . . . . . . Recall Investigation 1 | . . . . . . . . . . . . . . . . . . . . . . . . . . . . . . . 1 . . . Recall Reinforcements 4 | . . . . . . . 1 . . . . . . . . . . . . . . . 1 . . . . . 1 . . 1 . . Hauler Manifests 1 | . . . . . . . 1 . . . . . . . . . . . . . . . . . . . . . . . . . . . Registered Components 1 | . . . . . . . . . . . . . . . . . . . . . . . . . . . . . 1 . . . . . Registered Prototypes 1 | . . . . . . . . . . . . . . . . . . . . . . . . . . . . . 1 . . . . . Zone Layout 11 | . . . . . . . . . . . . . . . . . . . . . . . 2 . . . . . 5 . 2 2 . . Patrol Navigation 1 | . . . . . . 1 . . . . . . . . . . . . . . . . . . . . . . . . . . . . Derelict Proto ID Bank 1 | . . . 1 . . . . . . . . . . . . . . . . . . . . . . . . . . . . . . . Disengage Seal 1 | . . . . . . . . . . . . . . . . . . . . . . . . . . . . . . . . . . 1 Fabricator Hacks 3 | . . . . . . . . . . . . . . . . . . . . . . . . . . . . . 3 . . . . . Network Status 1 | . . . . . . . . . . . . . . . . . . . . . . . . . . . . . 1 . . . . . Load Schematic 1 | . . . . . . . . . . . . . . . . . . . . . . . . . . . . . 1 . . . . . Build 1 | . . . . . . . . . . . . . . . . . . . . . . . . . . . . . 1 . . . . . Repair Station Hacks 25 | . 2 . . 2 1 . 4 . . . . . 1 . . . . . . . . . . . . . . . 6 . 9 . . . Scan Component 14 | . 1 . . 1 1 . 2 . . . . . 1 . . . . . . . . . . . . . . . 3 . 5 . . . Repair 11 | . 1 . . 1 . . 2 . . . . . . . . . . . . . . . . . . . . . 3 . 4 . . . Recycling Unit Hacks 1 | . . . . . . . 1 . . . . . . . . . . . . . . . . . . . . . . . . . . . Retrieve Components 1 | . . . . . . . 1 . . . . . . . . . . . . . . . . . . . . . . . . . . . Scanalyzer 6 | . . . . 3 . . . . . . . . 1 . . . . . . . . . . . . . . . . . 2 . . . Insert Component 4 | . . . . 1 . . . . . . . . 1 . . . . . . . . . . . . . . . . . 2 . . . Analyze 2 | . . . . 2 . . . . . . . . . . . . . . . . . . . . . . . . . . . . . . Garrison Access Hacks 4 | . . . . 1 1 . . . . . . . . . . . . . . . . . . . . . . . . . 1 1 . . Unlock Access 1 | . . . . . 1 . . . . . . . . . . . . . . . . . . . . . . . . . . . . . Seal Access 3 | . . . . 1 . . . . . . . . . . . . . . . . . . . . . . . . . . 1 1 . . Unauthorized Hacks 12 | . . . . 1 . . . . . . . . . . . . . . . . . . . . . . . . 7 . 3 1 . . Terminals 9 | . . . . . . . . . . . . . . . . . . . . . . . . . . . . . 5 . 3 1 . . Track 4 | . . . . . . . . . . . . . . . . . . . . . . . . . . . . . 3 . 1 . . . Assimilate 1 | . . . . . . . . . . . . . . . . . . . . . . . . . . . . . . . . 1 . . Botnet 3 | . . . . . . . . . . . . . . . . . . . . . . . . . . . . . 1 . 2 . . . Operators 1 | . . . . . . . . . . . . . . . . . . . . . . . . . . . . . 1 . . . . . Fabricators . | . . . . . . . . . . . . . . . . . . . . . . . . . . . . . . . . . . . Repair Stations . | . . . . . . . . . . . . . . . . . . . . . . . . . . . . . . . . . . . Recycling Units . | . . . . . . . . . . . . . . . . . . . . . . . . . . . . . . . . . . . Scanalyzers 3 | . . . . 1 . . . . . . . . . . . . . . . . . . . . . . . . 2 . . . . . Researchers 3 | . . . . 1 . . . . . . . . . . . . . . . . . . . . . . . . 2 . . . . . Garrison Access . | . . . . . . . . . . . . . . . . . . . . . . . . . . . . . . . . . . . Data Cores Recovered 1 | . . . . . . . . . . . . . . . . . . . . . . . . . . . . . . . . 1 . . Used . | . . . . . . . . . . . . . . . . . . . . . . . . . . . . . . . . . . . Hacking Detections 74 | . 2 . . 8 3 1 7 . . . . . 8 . . . . 1 . . . . 5 . . . . 1 15 1 10 4 4 4 Full Trace Events 8 | . 1 . . 1 1 1 . . . . . . . . . . . . . . . . 1 . . . . . 2 1 . . . . Feedback Events 1 | . . . . . . . . . . . . . . . . . . . . . . . . . . . . . . 1 . . . . Corruption 1 | . . . . . . . . . . . . . . . . . . . . . . . . . . . . . . 1 . . . . Feedback Blocked . | . . . . . . . . . . . . . . . . . . . . . . . . . . . . . . . . . . . Robot Schematics Acquired 5 | . . . . . . . . . . . . . . . . 4 . . . . . . . . . . . . 1 . . . . . Robots Built . | . . . . . . . . . . . . . . . . . . . . . . . . . . . . . . . . . . . Authchips . | . . . . . . . . . . . . . . . . . . . . . . . . . . . . . . . . . . . Time . | . . . . . . . . . . . . . . . . . . . . . . . . . . . . . . . . . . . Total Robot Build Rating . | . . . . . . . . . . . . . . . . . . . . . . . . . . . . . . . . . . . Part Schematics Acquired 19 | . . . . 1 . . . . . . . . . . . 9 . . . . 4 . 2 . . . . . 3 . . . . . Parts Built 1 | . . . . . . . . . . . . . . . . . . . . . . . . . . . . . 1 . . . . . Authchips . | . . . . . . . . . . . . . . . . . . . . . . . . . . . . . . . . . . . Time 62 | . . . . . . . . . . . . . . . . . . . . . . . . . . . . . 62 . . . . . Total Part Build Rating 7 | . . . . . . . . . . . . . . . . . . . . . . . . . . . . . 7 . . . . . Parts Repaired 11 | . 1 . . 1 . . 2 . . . . . . . . . . . . . . . . . . . . . 3 . 4 . . . Time 375 | . 26 . . 26 . . 76 . . . . . . . . . . . . . . . . . . . . . 72 . 175 . . . Parts Recycled . | . . . . . . . . . . . . . . . . . . . . . . . . . . . . . . . . . . . Recycled Matter . | . . . . . . . . . . . . . . . . . . . . . . . . . . . . . . . . . . . Retrieved Matter . | . . . . . . . . . . . . . . . . . . . . . . . . . . . . . . . . . . . Retrieved Components . | . . . . . . . . . . . . . . . . . . . . . . . . . . . . . . . . . . . Parts Scanalyzed 1 | . . . . 1 . . . . . . . . . . . . . . . . . . . . . . . . . . . . . . Part Schematics Acquired 1 | . . . . 1 . . . . . . . . . . . . . . . . . . . . . . . . . . . . . . Parts Damaged . | . . . . . . . . . . . . . . . . . . . . . . . . . . . . . . . . . . . Bothacking | -11 -10 -10 -10 -8 -8 -8 -7 -7 -7 -7 -7 -6 -6 -6 -6 -6 -5 -5 -5 -5 -5 -4 -4 -4 -4 -4 -3 -3 -3 -2 -2 -2 -1 -1 ------------ Run | Jun Mat Min Sub Mat Sto Gar Fac Low Low Zio Dee Pro Fac Low Low Dat Pro Fac Upp Upp Zhi Pro Fac Upp Upp War Pro Res Tes Res Qua Sec Acc Com Used RIF Installer . | . . . . . . . . . . . . . . . . . . . . . . . . . . . . . . . . . . . Robots Hacked . | . . . . . . . . . . . . . . . . . . . . . . . . . . . . . . . . . . . Non-combat . | . . . . . . . . . . . . . . . . . . . . . . . . . . . . . . . . . . . Combat . | . . . . . . . . . . . . . . . . . . . . . . . . . . . . . . . . . . . Robot Hacks Applied . | . . . . . . . . . . . . . . . . . . . . . . . . . . . . . . . . . . . Relay Couplers Released 10 | . . . . . . 7 . . . . . . . . . . . . . . . . . . . . . . . 3 . . . . Machine Destruction 7 | . . . . . . 7 . . . . . . . . . . . . . . . . . . . . . . . . . . . . Programmers 3 | . . . . . . . . . . . . . . . . . . . . . . . . . . . . . . 3 . . . . Fabnet Peak Effective % . | . . . . . . . . . . . . . . . . . . . . . . . . . . . . . . . . . . . Robots Rewired 1 | . . . . . . . . . . . . . . . . . . . . . . . . . . . . . 1 . . . . . Allies Hacked . | . . . . . . . . . . . . . . . . . . . . . . . . . . . . . . . . . . . Hacks Repelled . | . . . . . . . . . . . . . . . . . . . . . . . . . . . . . . . . . . . Allies | -11 -10 -10 -10 -8 -8 -8 -7 -7 -7 -7 -7 -6 -6 -6 -6 -6 -5 -5 -5 -5 -5 -4 -4 -4 -4 -4 -3 -3 -3 -2 -2 -2 -1 -1 -------- Run | Jun Mat Min Sub Mat Sto Gar Fac Low Low Zio Dee Pro Fac Low Low Dat Pro Fac Upp Upp Zhi Pro Fac Upp Upp War Pro Res Tes Res Qua Sec Acc Com Total Allies 10 | . . . . . . 1 . 2 . 4 1 . . . . . . . . . . . . . . . . . 1 . . 1 . . Largest Group 5 | . . . . . . 1 . 2 . 4 5 . . . . . . . . . . . . . . . . . 1 1 1 2 . . Highest-Rated Group 257 | . . . . . . 39 . 40 . 138 257 . . . . . . . . . . . . . . . . . 152 152 152 178 . . Highest-Rated Ally 152 | . . . . . . 39 . 20 . 51 119 . . . . . . . . . . . . . . . . . 152 152 152 152 . . Total Orders 3 | . . . . . . . . . . . . . . . . . . . . . . . . . . . . . . . 2 1 . . STAY 2 | . . . . . . . . . . . . . . . . . . . . . . . . . . . . . . . 1 1 . . FOLLOW 1 | . . . . . . . . . . . . . . . . . . . . . . . . . . . . . . . 1 . . . Ally Attacks 75 | . . . . . . 24 . . . . 29 . . . . . . . . . . . . . . . . . . 8 9 5 . . Total Damage 2670 | . . . . . . 390 . . . . 921 . . . . . . . . . . . . . . . . . . 418 662 279 . . Kills 21 | . . . . . . 4 . . . . 9 . . . . . . . . . . . . . . . . . . 3 3 2 . . Allies Corrupted . | . . . . . . . . . . . . . . . . . . . . . . . . . . . . . . . . . . . Allies Melted 2 | . . . . . . . . . . . . . . . . . . . . . . . . . . . . . . 1 . . . 1 Intel | -11 -10 -10 -10 -8 -8 -8 -7 -7 -7 -7 -7 -6 -6 -6 -6 -6 -5 -5 -5 -5 -5 -4 -4 -4 -4 -4 -3 -3 -3 -2 -2 -2 -1 -1 ------- Run | Jun Mat Min Sub Mat Sto Gar Fac Low Low Zio Dee Pro Fac Low Low Dat Pro Fac Upp Upp Zhi Pro Fac Upp Upp War Pro Res Tes Res Qua Sec Acc Com Robot Analysis Total 10 | . 5 . . . . . . . . . . . . . . . . . . . 4 . . . . . . . 1 . . . . . Derelict Logs Recovered 14 | . . 1 2 . . . . . . 2 . 1 . 1 . . 2 . . 1 . 3 . 1 . . . . . . . . . . Drone Launches . | . . . . . . . . . . . . . . . . . . . . . . . . . . . . . . . . . . . Drone Recoveries . | . . . . . . . . . . . . . . . . . . . . . . . . . . . . . . . . . . . Exploration | -11 -10 -10 -10 -8 -8 -8 -7 -7 -7 -7 -7 -6 -6 -6 -6 -6 -5 -5 -5 -5 -5 -4 -4 -4 -4 -4 -3 -3 -3 -2 -2 -2 -1 -1 ------------- Run | Jun Mat Min Sub Mat Sto Gar Fac Low Low Zio Dee Pro Fac Low Low Dat Pro Fac Upp Upp Zhi Pro Fac Upp Upp War Pro Res Tes Res Qua Sec Acc Com Turns Passed 19548 | 108 1147 407 1366 1315 844 956 377 121 178 574 997 328 331 352 151 95 194 133 329 238 192 238 339 444 543 1183 259 504 1045 550 966 764 518 1462 Spaces Moved 20361 | 55 579 205 754 577 319 527 973 328 420 1132 1534 487 533 499 272 137 334 117 403 338 228 265 387 511 560 918 320 478 1086 913 1214 1069 698 1191 Core 9 | 4 . . . . . 4 . . . . . . . . . . . . . . . . . . . . . . . . . . . 1 Treads 2892 | 51 579 205 754 577 319 407 . . . . . . . . . . . . . . . . . . . . . . . . . . . . Legs 6 | . . . . . . 6 . . . . . . . . . . . . . . . . . . . . . . . . . . . . Wheels . | . . . . . . . . . . . . . . . . . . . . . . . . . . . . . . . . . . . Hover 14146 | . . . . . . . . . . . 1189 487 533 499 272 137 334 117 403 338 228 265 387 511 560 918 320 478 1086 913 1214 1069 698 1190 Flight 3308 | . . . . . . 110 973 328 420 1132 345 . . . . . . . . . . . . . . . . . . . . . . . Fastest Speed 23 | 50 160 160 160 160 160 23 23 23 23 23 30 48 48 48 48 48 48 48 48 58 63 63 63 68 68 68 68 51 51 44 34 33 33 31 Average Speed 63 | 152 160 160 160 160 160 133 23 23 23 29 44 48 49 48 48 48 48 48 57 62 63 63 64 68 68 68 68 51 51 44 48 43 42 42 Slowest Speed 330 | 160 160 160 160 160 160 330 23 23 23 31 110 48 52 48 48 48 48 48 58 65 63 63 141 138 68 141 68 51 115 51 115 44 100 114 Overloaded Moves 48 | . . . . . . . . . . . . . . . . . . . . . . . . . . . . . . . 5 2 2 39 Propulsion Burnouts . | . . . . . . . . . . . . . . . . . . . . . . . . . . . . . . . . . . . Robots Hopped 2 | . . . . . . . 2 . . . . . . . . . . . . . . . . . . . . . . . . . . . Cave-ins Triggered 2 | . . . . . . . . . . . . . 2 . . . . . . . . . . . . . . . . . . . . . Exploration Rate (%) 49 | 6 76 25 44 64 60 52 24 56 49 84 74 67 18 68 50 76 56 4 69 53 60 48 13 65 60 41 47 15 88 29 84 63 17 29 Regions Visited 34 Branch Regions 24 Pre-discovered Areas 9 | . . 1 . . . . . 2 . 1 . . . . . 1 . . . . 3 . . 1 . . . . . . . . . . Known Exits Taken 25 | . . . . 1 1 . 1 1 1 1 1 1 1 . . . 1 1 . 1 1 1 1 1 1 1 1 1 1 1 1 1 1 . Unknown Exits Taken 8 | 1 1 1 1 . . . . . . . . . . 1 1 1 . . 1 . . . . . . . . . . . . . . . Scrap Searched 29 | . . . 3 . . . . 1 3 3 . 1 . 1 6 . 1 . 2 1 . 1 . 2 2 . 2 . . . . . . . Spaces Dug 249 | . . . 2 1 1 . 10 2 15 . 3 20 21 1 3 1 6 1 2 2 . 7 7 6 16 37 5 9 19 3 5 16 16 12 Terrain Destroyed 837 | . . . 21 7 1 . 10 2 15 . 69 20 21 1 3 1 6 1 47 2 . 41 24 53 47 227 5 9 67 12 13 22 50 40 Melee 149 | . . . 2 1 1 . 10 2 15 . 1 20 21 1 3 1 6 1 2 2 . . . 6 16 16 5 9 2 . 2 3 . 1 Projectile 184 | . . . . . . . . . . . 7 . . . . . . . . . . 15 11 5 11 1 . . 30 8 7 19 41 29 AOE 467 | . . . 19 6 . . . . . . 61 . . . . . . . 45 . . 26 13 42 20 210 . . 8 4 4 . 9 . Terrain Rammed . | . . . . . . . . . . . . . . . . . . . . . . . . . . . . . . . . . . . Walls Destroyed . | . . . . . . . . . . . . . . . . . . . . . . . . . . . . . . . . . . . Machines Disabled . | . . . . . . . . . . . . . . . . . . . . . . . . . . . . . . . . . . . Actions | -11 -10 -10 -10 -8 -8 -8 -7 -7 -7 -7 -7 -6 -6 -6 -6 -6 -5 -5 -5 -5 -5 -4 -4 -4 -4 -4 -3 -3 -3 -2 -2 -2 -1 -1 --------- Run | Jun Mat Min Sub Mat Sto Gar Fac Low Low Zio Dee Pro Fac Low Low Dat Pro Fac Upp Upp Zhi Pro Fac Upp Upp War Pro Res Tes Res Qua Sec Acc Com Total 25456 | 72 730 276 839 831 505 663 1084 363 471 1349 1835 536 577 608 286 159 352 175 474 357 260 315 449 569 654 1413 344 704 1461 1037 1550 1327 911 1920 Wait 2710 | 1 65 55 22 109 52 21 76 12 22 181 202 18 1 104 . 14 . 20 4 4 . 24 12 15 30 372 9 174 160 84 245 144 124 334 Move 20323 | 55 578 204 753 576 319 525 968 327 419 1131 1533 486 531 498 271 136 333 116 402 337 227 264 386 510 559 917 319 477 1085 912 1213 1068 697 1191 Hop 2 | . . . . . . . 2 . . . . . . . . . . . . . . . . . . . . . . . . . . . Pick Up 242 | 7 20 2 4 12 6 4 8 3 1 5 18 . 11 1 10 3 3 10 8 5 8 . 9 4 3 21 1 4 17 4 12 6 6 6 Fast Attach 181 | 6 5 . 2 13 3 17 5 5 . 3 20 . 4 1 . . . 3 4 . 1 . 2 . . 12 . 4 20 3 15 13 2 18 Attach 145 | 1 1 . 6 6 5 15 2 1 . 3 10 . 2 2 . . . 4 9 4 5 1 10 3 2 3 1 5 9 3 2 5 3 22 Detach 92 | . 1 . . 2 . 3 2 . . 2 6 . 2 . . . 1 1 11 2 4 3 2 . . 5 . 5 8 1 4 6 2 19 Swap 212 | . 4 2 6 15 21 5 1 1 1 4 2 . . . . . 1 . 6 2 4 3 8 10 10 13 3 11 39 . 5 15 9 11 Drop 263 | . 17 4 . 21 18 2 1 7 1 8 28 . 2 . . . . 4 10 . 3 . . 2 1 25 1 6 37 6 23 15 4 17 Fire 846 | 2 37 3 27 69 71 65 . . . 9 14 . . . . . . . 12 . . 20 16 13 30 22 3 5 78 23 19 44 61 203 Melee 381 | . . . 16 1 4 6 19 7 27 3 2 22 23 2 5 6 14 17 8 3 8 . 4 12 19 23 7 13 2 . 12 11 3 82 Ram 3 | . . . . . . . . . . . . . . . . . . . . . . . . . . . . . . 1 . . . 2 Kick . | . . . . . . . . . . . . . . . . . . . . . . . . . . . . . . . . . . . Crush 23 | . 2 6 3 7 5 . . . . . . . . . . . . . . . . . . . . . . . . . . . . . Escape Stasis 14 | . . . . . . . . . . . . . 1 . . . . . . . . . . . . . . . . . . . . 13 Rewire 9 | . . . . . 1 . . . . . . . . . . . . . . . . . . . . . . . 6 . . . . 2 Trap 10 | . . . . . . . . . . . . 10 . . . . . . . . . . . . . . . . . . . . . . Miscellaneous . | . . . . . . . . . . . . . . . . . . . . . . . . . . . . . . . . . . . Route ------- -11/Junkyard -10/Materials (discovered 4 exits: [*Mat x2] / *Min / *Sub) -10/Mines (discovered 2 exits: [*Mat] / *Sub) -10/Subcaves -8/Materials (discovered 4 exits: *Fac x2 / *Sto x2) -8/Storage -8/Garrison (discovered 2 exits: *Fac x2) -7/Factory (discovered 4 exits: *Fac x2 / *Low x2) -7/Lower Caves -7/Lower Caves (discovered 2 exits: *Fac / *Zio) -7/Zion (discovered 2 exits: *Dee / [*Pro]) -7/Deep Caves -6/Proximity Caves -6/Factory (discovered 4 exits: Fac x2 / *Low / DSF) -6/Lower Caves -6/Lower Caves -6/Data Miner -5/Proximity Caves -5/Factory (discovered 3 exits: Fac / *Upp x2) -5/Upper Caves -5/Upper Caves (discovered 2 exits: *Fac / *Zhi) -5/Zhirov -4/Proximity Caves -4/Factory (discovered 4 exits: *Upp x2 / Ext x2) -4/Upper Caves -4/Upper Caves (discovered 2 exits: *Res / *War) -4/Warlord -3/Proximity Caves -3/Research (discovered 4 exits: *Res x2 / Arm / *Tes) -3/Testing -2/Research (discovered 2 exits: *Acc / *Qua) -2/Quarantine (discovered 2 exits: Acc / *Sec) -2/Section 7 -1/Access (discovered 2 exits: *Sur / *Com) -1/Command History --------- Turn | Location | Event 8 | -11/Junkyard | Discovered new exit (range 16) 109 | -11/Junkyard | Entered Materials 210 | -10/Materials | Central database locked down 319 | -10/Materials | Build established: Mutant 761 | -10/Materials | Discovered new exit (range 16) 862 | -10/Materials | Repaired Lgt. Treads 950 | -10/Materials | Discovered new exit (range 14) 1048 | -10/Materials | Discovered new exit (range 5) 1155 | -10/Materials | Discovered new exit (range 15) 1256 | -10/Materials | Entered Mines 1269 | -10/Mines | Met a Derelict who couldn't figure out how to use a Trap Extractor 1353 | -10/Mines | Discovered new exit (range 11) 1356 | -10/Mines | Learned Materials terminal intel 1409 | -10/Mines | Learned location of Storage (-8) 1451 | -10/Mines | Discovered new exit (range 5) 1663 | -10/Mines | Entered Subcaves 1663 | -10/Subcaves | Learned Materials trap positions 1783 | -10/Subcaves | Shifting Twisted Machinery released Sub. Beam Cannon 1792 | -10/Subcaves | Shifting Twisted Machinery released Mak. Thermal Plating 2342 | -10/Subcaves | Shifting Twisted Machinery released Sub. Laser 2353 | -10/Subcaves | Shifting Twisted Machinery released Battle Rifle 2433 | -10/Subcaves | Core integrity fell below 50% 2675 | -10/Subcaves | Visited 4L-MR0's lab 2689 | -10/Subcaves | Found Rainbow Chip 2932 | -10/Subcaves | Learned Materials emergency access door positions 2954 | -10/Subcaves | Discovered new exit (range 5) 3029 | -10/Subcaves | Entered Materials 3029 | -8/Materials | Evolved 4 slots: Propulsion x2, Utility x2 3030 | -8/Materials | Loaded intel: 10 trap records 3032 | -8/Materials | Loaded intel: 12 terminal locations 3289 | -8/Materials | Identified exit to Storage 3374 | -8/Materials | Repaired Lgt. Treads 3428 | -8/Materials | Discovered new exit (range 4) 3759 | -8/Materials | Build established: Scavenger-Mutant 4266 | -8/Materials | Discovered new exit (range 14) 4344 | -8/Materials | Entered Storage 4483 | -8/Storage | Lost 3 parts (1p2n) 5188 | -8/Storage | Identified exit to Garrison 5188 | -8/Storage | Entered Garrison 5234 | -8/Garrison | Rescued a captive Derelict 5276 | -8/Garrison | Triggered checkpoint 5299 | -8/Garrison | Garrison Relay disabled 5384 | -8/Garrison | Triggered checkpoint 5434 | -8/Garrison | Triggered checkpoint 5506 | -8/Garrison | Discovered new exit (range 10) 5550 | -8/Garrison | Triggered checkpoint 5568 | -8/Garrison | Core integrity fell below 50% 5588 | -8/Garrison | Garrison Relay disabled 5744 | -8/Garrison | Triggered checkpoint 5828 | -8/Garrison | Discovered new exit (range 10) 5844 | -8/Garrison | Attempted to access garrison exit controls, blocked by remote lockdown 5922 | -8/Garrison | Lost 9 parts (1p4n2u2w) 6004 | -8/Garrison | Triggered checkpoint 6066 | -8/Garrison | Core integrity fell below 20% 6088 | -8/Garrison | Attached Rainbow Chip, gained temporary slots: Power, Propulsion, Utility, Weapon 6129 | -8/Garrison | Lost 7 parts (3n1u3w) 6144 | -8/Garrison | Entered Factory 6144 | -7/Factory | Evolved 2 slots: Utility x2 6148 | -7/Factory | Discovered new exit (range 8) 6167 | -7/Factory | Identified exit to DSF 6248 | -7/Factory | Identified exit to Factory 6314 | -7/Factory | Discovered exit to Factory (range 16) 6369 | -7/Factory | Repaired Cesium-ion Thruster 6408 | -7/Factory | Repaired Cesium-ion Thruster 6437 | -7/Factory | Identified exit to Lower Caves 6521 | -7/Factory | Entered Lower Caves 6527 | -7/Lower Caves | Met a Warlord Commander 6528 | -7/Lower Caves | Learned location of Warlord (-4) 6531 | -7/Lower Caves | Found Encrypted Comm Array 6535 | -7/Lower Caves | Encountered a Warlord checkpoint 6569 | -7/Lower Caves | A Commander dispatched an escort 6581 | -7/Lower Caves | Learned Armory garrison access intel 6581 | -7/Lower Caves | Learned Extension trap positions 6581 | -7/Lower Caves | Learned 8 Research zone layouts 6581 | -7/Lower Caves | Learned location of 1 exit from Factory 6587 | -7/Lower Caves | Destroyed JZ-HES(g) 6624 | -7/Lower Caves | Discovered new exit (range 13) 6626 | -7/Lower Caves | Identified exit to Lower Caves 6632 | -7/Lower Caves | Acquired the password to a Derelict Tinkerer's latest research 6635 | -7/Lower Caves | Found Prototype Special Weapon 6642 | -7/Lower Caves | Entered another Lower Caves area 6642 | -7/Lower Caves | Discovered exit to Factory (range 11) 6693 | -7/Lower Caves | Build established: Scavenger-Sprinter 6817 | -7/Lower Caves | Discovered new exit (range 13) 6820 | -7/Lower Caves | Attracted the attention of an 0b10 checkpoint 6820 | -7/Lower Caves | Identified exit to Zion 6820 | -7/Lower Caves | Entered Zion 6826 | -7/Zion | Given the Hacking Drone Bay 6834 | -7/Zion | Discovered new exit (range 15) 6845 | -7/Zion | Identified Molecular Deconstructor 6859 | -7/Zion | Learned location of Quarantine (-2) 6984 | -7/Zion | Discovered new exit (range 5) 7053 | -7/Zion | Found Prototype Special Weapon 7054 | -7/Zion | Found Prototype Special Weapon 7108 | -7/Zion | Learned 4 Factory zone layouts 7154 | -7/Zion | Learned Factory emergency access door positions 7254 | -7/Zion | Gained Derelict followers 7291 | -7/Zion | Saw the warning signs outside the Deep Caves entrance 7291 | -7/Zion | Identified exit to Deep Caves 7394 | -7/Zion | Entered Deep Caves 7394 | -7/Deep Caves | Accompanied by 4 allies 7395 | -7/Deep Caves | Met 5H-AD0 7535 | -7/Deep Caves | Z-Facility disabled 7548 | -7/Deep Caves | Build established: Derelict-Sprinter 7551 | -7/Deep Caves | Identified RU-N14's Throwing Claymores (x2) 7554 | -7/Deep Caves | Attacked by Z-Imprinter 7557 | -7/Deep Caves | Destroyed Z-Imprinter 7594 | -7/Deep Caves | Lost 5 parts (4n1u) 7619 | -7/Deep Caves | Found Prototype Protection 7619 | -7/Deep Caves | Identified Zio. Weapon Casing 7814 | -7/Deep Caves | Found Zio. Weapon Casing 7820 | -7/Deep Caves | Found Zio. Weapon Casing 7893 | -7/Deep Caves | Discovered new exit (range 6) 7949 | -7/Deep Caves | Build established: Scavenger-Mutant 8310 | -7/Deep Caves | Identified exit to Proximity Caves 8356 | -7/Deep Caves | Spotted as-35722 8357 | -7/Deep Caves | Found Prototype Storage 8391 | -7/Deep Caves | Entered Proximity Caves 8646 | -6/Proximity Caves | Discovered exit to Factory (range 13) 8659 | -6/Proximity Caves | Learned 12 Factory zone layouts 8719 | -6/Proximity Caves | Entered Factory 8719 | -6/Factory | Evolved 2 slots: Utility x2 8720 | -6/Factory | Identified exit to Lower Caves 8720 | -6/Factory | Identified Lightpack 2.0 8721 | -6/Factory | Identified exit to Factory 8798 | -6/Factory | Crushed by falling debris 8822 | -6/Factory | Crushed by falling debris 8853 | -6/Factory | Lost 3 parts (1n2u) 8912 | -6/Factory | Identified exit to DSF 9016 | -6/Factory | Build established: Hauler-Mutant 9050 | -6/Factory | Entered Lower Caves 9152 | -6/Lower Caves | Ambushed by wild Derelicts 9178 | -6/Lower Caves | Learned Factory security intel 9212 | -6/Lower Caves | Spotted B-75 Beast 9338 | -6/Lower Caves | Encountered a Warlord checkpoint 9354 | -6/Lower Caves | Discovered new exit (range 14) 9402 | -6/Lower Caves | Entered another Lower Caves area 9527 | -6/Lower Caves | Discovered new exit (range 7) 9553 | -6/Lower Caves | Entered Data Miner 9553 | -6/Data Miner | Discovered new exit (range 6) 9563 | -6/Data Miner | Met Data Miner 9572 | -6/Data Miner | Learned location of Section 7 (-2) 9572 | -6/Data Miner | Acquired the access code to Warlord's prototype stash 9578 | -6/Data Miner | Received God Mode back door access code from Data Miner 9616 | -6/Data Miner | Destroyed Data Miner 9618 | -6/Data Miner | Found Prototype Hackware 9620 | -6/Data Miner | Found Prototype Hackware 9623 | -6/Data Miner | Data Conduit disabled 9648 | -6/Data Miner | Entered Proximity Caves 9652 | -5/Proximity Caves | Spotter reported a threat 9652 | -5/Proximity Caves | Spotter reported a threat 9726 | -5/Proximity Caves | Spotter reported a threat 9730 | -5/Proximity Caves | Learned location of 2 exits from Factory 9748 | -5/Proximity Caves | Learned 4 Factory zone layouts 9809 | -5/Proximity Caves | Discovered exit to Factory (range 5) 9842 | -5/Proximity Caves | Entered Factory 9842 | -5/Factory | Evolved 2 slots: Propulsion x1, Utility x1 9843 | -5/Factory | Identified exit to Upper Caves 9844 | -5/Factory | Identified exit to Factory 9911 | -5/Factory | Identified Deep Network Scanner 9912 | -5/Factory | Identified Ghost Barrier 9966 | -5/Factory | Lost 3 parts (2p1u) 9975 | -5/Factory | Entered Upper Caves 10116 | -5/Upper Caves | Attracted the attention of an 0b10 checkpoint 10149 | -5/Upper Caves | Destroyed 7 combat bots 10201 | -5/Upper Caves | Build established: Hacker-Mutant 10260 | -5/Upper Caves | Discovered new exit (range 10) 10304 | -5/Upper Caves | Entered another Upper Caves area 10346 | -5/Upper Caves | Discovered exit to Factory (range 5) 10388 | -5/Upper Caves | Encountered a Warlord checkpoint 10405 | -5/Upper Caves | Attracted the attention of an 0b10 checkpoint 10525 | -5/Upper Caves | Discovered new exit (range 5) 10537 | -5/Upper Caves | Learned Factory interactive machine intel 10542 | -5/Upper Caves | Identified exit to Zhirov 10542 | -5/Upper Caves | Entered Zhirov 10542 | -5/Zhirov | Discovered new exit (range 4) 10554 | -5/Zhirov | Met Zhirov 10571 | -5/Zhirov | Learned location of Testing (-3) 10571 | -5/Zhirov | Learned location of Command (-1) 10575 | -5/Zhirov | Zhirov requested help retrieving the SGEMP Prototype 10586 | -5/Zhirov | Found Alien Artifact 10586 | -5/Zhirov | Identified Integrated Dissipator 10586 | -5/Zhirov | Installed Integrated Dissipator, increased core heat dissipation (+20) 10595 | -5/Zhirov | Found Alien Artifact 10694 | -5/Zhirov | Build established: Hauler-Mutant 10728 | -5/Zhirov | Identified exit to Proximity Caves 10734 | -5/Zhirov | Entered Proximity Caves 10744 | -4/Proximity Caves | Spotted B-86 Titan 10863 | -4/Proximity Caves | Spotter reported a threat 10930 | -4/Proximity Caves | Learned Research garrison access intel 10962 | -4/Proximity Caves | Learned Research security intel 10963 | -4/Proximity Caves | Discovered exit to Factory (range 13) 10972 | -4/Proximity Caves | Entered Factory 10972 | -4/Factory | Evolved 2 slots: Power x1, Utility x1 10973 | -4/Factory | Loaded intel: 53 interactive machine locations 10976 | -4/Factory | Identified exit to DSF 11082 | -4/Factory | Identified exit to Upper Caves 11082 | -4/Factory | Identified exit to Extension 11298 | -4/Factory | Lost 3 parts (1n1u1w) 11311 | -4/Factory | Entered Upper Caves 11425 | -4/Upper Caves | Attracted the attention of an 0b10 outpost 11564 | -4/Upper Caves | Learned location of 1 exit from Research 11575 | -4/Upper Caves | Learned location of 1 exit from Factory 11575 | -4/Upper Caves | Learned Factory terminal intel 11575 | -4/Upper Caves | Learned Armory garrison access intel 11668 | -4/Upper Caves | Encountered a Warlord checkpoint 11688 | -4/Upper Caves | Discovered new exit (range 16) 11754 | -4/Upper Caves | Identified exit to Upper Caves 11755 | -4/Upper Caves | Entered another Upper Caves area 11780 | -4/Upper Caves | Discovered new exit (range 12) 11841 | -4/Upper Caves | Identified exit to Research 12234 | -4/Upper Caves | Discovered new exit (range 5) 12296 | -4/Upper Caves | Identified exit to Warlord 12298 | -4/Upper Caves | Entered Warlord 12322 | -4/Warlord | System corruption cleaned by Quarantine Array 12467 | -4/Warlord | Found Prototype Special Weapon 12469 | -4/Warlord | Found Prototype Special Weapon 12470 | -4/Warlord | Found Prototype Special Weapon 12472 | -4/Warlord | Found Prototype Special Weapon 12474 | -4/Warlord | Found Prototype Special Weapon 12475 | -4/Warlord | Found Prototype Special Weapon 12543 | -4/Warlord | Identified RU-N14's Throwing Claymores v3 (x3) 12581 | -4/Warlord | Met Warlord 12588 | -4/Warlord | Opened Warlord's prototype stash 12595 | -4/Warlord | Found Prototype Reactor 12606 | -4/Warlord | Warlord's base attacked by MAIN.C 12606 | -4/Warlord | Found Prototype Device 12606 | -4/Warlord | Identified Thermal Barrier 12612 | -4/Warlord | Found Prototype Device 12612 | -4/Warlord | Identified Exp. Cloaking Device 12787 | -4/Warlord | Destroyed 10 combat bots 12835 | -4/Warlord | Build established: Hacker-Mutant 12956 | -4/Warlord | Warlord forces counterattacked 12958 | -4/Warlord | Spotted Striker 12970 | -4/Warlord | Spotted Striker 12997 | -4/Warlord | Destroyed 8 combat bots 13036 | -4/Warlord | Discovered new exit (range 15) 13106 | -4/Warlord | Destroyed Executioner 13106 | -4/Warlord | Spotted Striker 13129 | -4/Warlord | Destroyed 8 combat bots 13207 | -4/Warlord | Spotted B-86 Titan 13207 | -4/Warlord | Spotted Striker 13207 | -4/Warlord | Spotted Striker 13281 | -4/Warlord | Warlord base infiltrated, sounded retreat 13426 | -4/Warlord | Spotted Striker 13427 | -4/Warlord | Spotted Executioner 13435 | -4/Warlord | Spotted Striker 13437 | -4/Warlord | Spotted Executioner 13468 | -4/Warlord | Identified exit to Proximity Caves 13481 | -4/Warlord | Entered Proximity Caves 13496 | -3/Proximity Caves | Attracted the attention of an 0b10 checkpoint 13710 | -3/Proximity Caves | Discovered exit to Research (range 11) 13740 | -3/Proximity Caves | Entered Research 13740 | -3/Research | Evolved 2 slots: Propulsion x2 13741 | -3/Research | Identified exit to Armory 13742 | -3/Research | Identified exit to Testing 13743 | -3/Research | Identified exit to Research 13745 | -3/Research | Loaded intel: 4 garrison access locations 13747 | -3/Research | Identified Vortex Chain Reactor 13866 | -3/Research | Found Prototype Device 13866 | -3/Research | Identified Exp. Thermal Shield 13995 | -3/Research | Discovered exit to Research (range 16) 14244 | -3/Research | Entered Testing 14553 | -3/Testing | Repaired Cmb. Gravmag System 14572 | -3/Testing | Repaired Cmb. Gravmag System 14610 | -3/Testing | Repaired Cld. Antigrav System 14657 | -3/Testing | Found Prototype Protection 14657 | -3/Testing | Identified Med. Regenerative Plating 14676 | -3/Testing | Found Prototype Ballistic Cannon 14676 | -3/Testing | Identified Perforator 14716 | -3/Testing | Spotted PG-63GMR0F5X5 14727 | -3/Testing | Destroyed PG-63GMR0F5X5 14836 | -3/Testing | Build established: Wizard-Mutant 14855 | -3/Testing | Found Ghost Barrier 14948 | -3/Testing | Found Prototype Energy Cannon 14948 | -3/Testing | Identified Potential Cannon 14981 | -3/Testing | Fabricated Exp. Signal Interpreter? 15161 | -3/Testing | Destroyed 7 combat bots 15179 | -3/Testing | Build established: Hacker-Mutant 15228 | -3/Testing | Spotted PH-AJ06V1S7YO 15244 | -3/Testing | First assault squad dispatched 15250 | -3/Testing | Rewired PH-AJ06V1S7YO 15289 | -3/Testing | Entered Research 15289 | -2/Research | Accompanied by 1 ally 15289 | -2/Research | Warlord forces began assault on 0b10 15289 | -2/Research | Evolved 2 slots: Propulsion x1, Utility x1 15358 | -2/Research | Discovered new exit (range 10) 15361 | -2/Research | Discovered new exit (range 8) 15361 | -2/Research | Identified exit to Access 15364 | -2/Research | Identified exit to Quarantine 15399 | -2/Research | Research machine network offline 15435 | -2/Research | Met up with Warlord 15661 | -2/Research | Spotted B-90 Cyclops 15839 | -2/Research | Spotted Executioner 15839 | -2/Research | Spotted Striker 15839 | -2/Research | Entered Quarantine 15839 | -2/Quarantine | Accompanied by 1 ally 15885 | -2/Quarantine | Found Alien Artifact 15984 | -2/Quarantine | Found Alien Slashing Weapon 15998 | -2/Quarantine | Found Alien Energy Cannon 15998 | -2/Quarantine | Identified Core Cannon 16040 | -2/Quarantine | Identified Core Reset Matrix 16040 | -2/Quarantine | Identified Sigix Broadsword 16056 | -2/Quarantine | Cryocooling Duct disabled 16071 | -2/Quarantine | Ambient heat levels rising (+20) 16071 | -2/Quarantine | Non-combat units ordered to evacuate 16133 | -2/Quarantine | Found Alien Impact Weapon 16147 | -2/Quarantine | Found Alien Artifact 16188 | -2/Quarantine | Repaired Cmb. Gravmag System? 16278 | -2/Quarantine | Repaired Exp. Utility Shielding 16347 | -2/Quarantine | Repaired Broken Cld. Antigrav System? 16472 | -2/Quarantine | Repaired Broken Cmb. Gravmag System 16652 | -2/Quarantine | Identified Core Stripper 16676 | -2/Quarantine | Spotted Fortress 16688 | -2/Quarantine | Destroyed Fortress 16693 | -2/Quarantine | Found Prototype Device 16693 | -2/Quarantine | Identified Exp. EM Disruption Field 16700 | -2/Quarantine | Found Prototype Device 16700 | -2/Quarantine | Identified Exp. Force Field 16752 | -2/Quarantine | Discovered new exit (range 6) 16754 | -2/Quarantine | Identified exit to Section 7 16805 | -2/Quarantine | Entered Section 7 16805 | -2/Section 7 | Accompanied by 1 ally 16827 | -2/Section 7 | Spotted B-90 Cyclops 16850 | -2/Section 7 | Spotted S7 Guard 16875 | -2/Section 7 | Destroyed S7 Guard 16893 | -2/Section 7 | Found Hvy. Regenerative Plating 16909 | -2/Section 7 | Found Alien Artifact 16909 | -2/Section 7 | Identified Core Membrane 16909 | -2/Section 7 | Installed Core Membrane, gained immunity to corruption 16933 | -2/Section 7 | Found Integrated Dissipator 16933 | -2/Section 7 | Installed Integrated Dissipator, increased core heat dissipation (+20) 17036 | -2/Section 7 | Found Quantum Capacitor 17232 | -2/Section 7 | Found Alien Artifact 17234 | -2/Section 7 | Found Alien Artifact 17265 | -2/Section 7 | Spotted B-99 Colossus 17294 | -2/Section 7 | Found Alien Artifact 17294 | -2/Section 7 | Identified LRC Storage 17294 | -2/Section 7 | Installed LRC Storage, increased inventory capacity (+2) 17296 | -2/Section 7 | Found Alien Artifact 17296 | -2/Section 7 | Identified LRC Boosters 17296 | -2/Section 7 | Installed LRC Boosters, increased mass support (+10) 17565 | -2/Section 7 | Discovered exit to Access (range 7) 17569 | -2/Section 7 | Entered Access 17569 | -1/Access | Evolved 2 slots: Power x1, Propulsion x1 17649 | -1/Access | Build established: Infiltrator-Mutant 17732 | -1/Access | Found Prototype Processor 17765 | -1/Access | Discovered new exit (range 6) 17768 | -1/Access | Identified exit to Surface 18084 | -1/Access | Discovered new exit (range 7) 18086 | -1/Access | Identified exit to Command 18087 | -1/Access | Entered Command 18087 | -1/Command | Identified Spectral Analyzer 18125 | -1/Command | Found Launcher Loader 18428 | -1/Command | Identified Transdimensional Reconstructor 18428 | -1/Command | Failed to warp due to unstable space 18429 | -1/Command | Identified Hpw. Transdimensional Reconstructor 18429 | -1/Command | Failed to warp due to unstable space 18552 | -1/Command | Destroyed 9 combat bots 18601 | -1/Command | Disengaged cave seal 18602 | -1/Command | Welcomed Warlord to Command 18624 | -1/Command | P-80 Master assimilated allied 79-MT4(M) 18629 | -1/Command | First assault squad dispatched 18776 | -1/Command | Build established: Mutant 18853 | -1/Command | Warlord commented on Warlord statues 18868 | -1/Command | Spotted M Guard 18868 | -1/Command | Spotted Combat Programmer 18869 | -1/Command | Spotted Combat Programmer 18869 | -1/Command | Spotted M Guard 18914 | -1/Command | Destroyed Combat Programmer 18914 | -1/Command | All MAIN.C guards destroyed 18918 | -1/Command | Found Prototype Device 18918 | -1/Command | Identified AEGIS Remote Shield 19303 | -1/Command | Met MAIN.C 19317 | -1/Command | 0b10 Conduit disabled 19330 | -1/Command | Warlord shut down involuntarily 19414 | -1/Command | MAIN.C activated Command garrisons 19440 | -1/Command | Lost 8 parts (1p3n3u1w) 19523 | -1/Command | Destroyed 7 combat bots 19527 | -1/Command | Core integrity fell below 50% 19542 | -1/Command | Identified Subatomic Replicator 19542 | -1/Command | Used Subatomic Replicator to replicate Hvy. Machine Gun 19544 | -1/Command | Core integrity fell below 20% 19549 | -1/Command | Destroyed by X-87 Electro with Compact HERF Cannon Last Messages --------------- 19540_ Slug penetrates H-88 Terminator. 19541_ Penetrated by Slug. 19541_ H-88 Terminator misfires. 19541_ Penetrated by Slug. 19542_ Dropped Hvy. Machine Gun. 19542_ Core Membrane filtered system corruption (1). 19542_ Identified Subatomic Replicator. 19542_ Replicated Hvy. Machine Gun. 19543_ Acquired Hvy. Machine Gun. 19543_ Penetrated by Slug. 19543_ Hvy. Machine Gun destroyed. 19543_ Penetrated by Slug. 19545_ Core Membrane filtered system corruption (1). 19545_ Penetrated by Slug. 19546_ Acquired Hvy. Machine Gun. 19546_ Penetrated by Slug. 19548_ Hvy. Machine Gun destroyed. 19548_ Penetrated by Slug. 19548_ Slug penetrates 0b10 Conduit. 19548_ Penetrated by Slug. Map ----- +----------------------------------------------------+ | ?????????????????????????????????????????????????? | | ?????????????????????????????????????????????????? | | ?????????????????????????????????????????????????? | | ?????????????????????????????????????????????????? | | ?????????????????????????????????????????????????? | | ?????????????????????????????????????????????????? | | ?????????????????????????????????????????????????? | | ?????????????????????????????????????????????????? | | ?????????????????????????????????????????????????? | | ?????????????????????????????????????????????????? | | ?????????????????????????????????????????????????? | | ?????????????????????????????????????????????????? | | ?????????????????????????????????????????????????? | | ?????????????????????????????????????????????????? | | ?????????????????????????????????????????????????? | | ?????????????????????????????????????????????????? | | ?????????????????????????????????????????????????? | | ?????????????????????????????????????????????????? | | ?????????????????????????????????????????????????? | | ?????????????????????????????????????????????????? | | ?????????????###################?????????????????? | | ??????????""""""" """ %%! #?????????????????? | | ??????????"" " [[% #?????????????????? | | ????????????"" x ################### | | ?????????????"""" =hhp / | | ?????????? ! @ h / | | ????????????? """" =!=MMM / W %% | | ???????????????"""" ! MMM ################### | | ???????????????"" ! !MMM #?????????????????? | | ????????????? "" = ! #?????????????????# | | ???????????? " = "#?????????????????# | | ????????????"""""" "" ""#?????????????????# | | ????????????? " "" ""#?????????????????# | | ??????????? " """""""#?????????????????# | | ???????????? " " " " #?????????????????# | | ??????????? " " " #?????????????????# | | ???????????? " " " """" " #?????????????????# | | ???????????? """ " " """" #?????????????????# | | ????????????? "? " " " ????????????????????# | | ?????????????"???"""""" ???????????????????????? | | ?????????????????????? """???????????????????????? | | ?????????????????????? ??????????????????????????? | | ??????????????????????#??????????????????????????? | | ?????????????????????????????????????????????????? | | ?????????????????????????????????????????????????? | | ?????????????????????????????????????????????????? | | ?????????????????????????????????????????????????? | | ?????????????????????????????????????????????????? | | ?????????????????????????????????????????????????? | | ?????????????????????????????????????????????????? | +----------------------------------------------------+ Best States ------------- Heat Dissipation 161 Energy Generation 75 Energy Capacity 1390 Matter Stores 681 Matter Capacity 700 Sight Range 24 Robot Scan Range 18 Terrain Scan Range 20 Terrain Scan Density 110 Jamming Range 14 Cloak Strength 4 Armor Coverage 600 Resistance: EM 75 Propulsion Shielding 66 Utility Shielding 90 Weapon Shielding 100 Weapon Cycling 25 Evasion (%) 65 Targeting Accuracy 8 Recoil Reduction 4 Offensive Hacking 28 Defensive Hacking 34 Item Schematics ----------------- Imp. VTOL Module | -8/Materials | Scanalyzed Combat Drone Bay | -6/Data Miner | Free Lgt. Regenerative Plating | -6/Data Miner | Free Cld. Nuclear Pulse Thruster | -6/Data Miner | Free Prc. Matter Filter | -6/Data Miner | Free Neutron Cannon | -6/Data Miner | Free Centrium Wheel | -6/Data Miner | Free Adv. Hardlight Generator | -6/Data Miner | Free Dual-blade Saw | -6/Data Miner | Free Adv. Power Amplifier | -6/Data Miner | Free Assault Drone Bay | -5/Zhirov | Free Exp. Heat Sink | -5/Zhirov | Free Exp. Optical Array | -5/Zhirov | Free Imp. Arc Thrower | -5/Zhirov | Free Exp. Signal Interpreter | -4/Factory | Hacked Lrg. Storage Unit | -4/Factory | Hacked Cmb. Antigrav System | -3/Testing | Hacked Exp. Energy Well | -3/Testing | Archive Hvy. Regenerative Plating | -3/Testing | Hacked Robot Schematics ------------------ A-15 Conveyor | -6/Data Miner | Free B-48 Gladiator | -6/Data Miner | Free E-15 Imp | -6/Data Miner | Free R-10 Processor | -6/Data Miner | Free H-77 Assassin | -3/Testing | Archive Fabricated ------------ Exp. Signal Interpreter | x1 | -3/Testing Alien Tech Used ----------------- Integrated Dissipator Core Cannon Sigix Broadsword Core Stripper Core Membrane LRC Storage LRC Boosters Transdimensional Reconstructor High-powered Transdimensional Reconstructor Subatomic Replicator Achievements -------------- None Challenges ------------ None Game ------ Seed DrainedRelayDriver Manual? 0 Play Time 07:19:50 Cumulative 654.7 hours Start 2023.07.12 @ 13:33:47 End 2023.07.16 @ 00:01:48 Sessions 12 Manual Loads 0 Difficulty Rogue Special Mode None Game No. 563 Rogue 348 Adventurer 112 Explorer 103 Win Type - Total 42 Types 26/0/8/3/0/0/4/1/0 Lore% 86 Gallery% 91 Achievement% 82 Wizard Run 0 Options --------- ASCII 0 Keyboard 1 Movement Vi Keybinds 1 Fullscreen 2 Font 36/Smallcaps Map View 76x56 Tactical HUD 1 Map Filters NONE Filters NONE Steam 1 RUN: 1878df9f-6812-4e38-b2e6-a9f02c16ed7a